Cogmind - Beta 16.1 @@@ ROGUE MODE // 2026.04.25 @ 09:24:11 Player: spider Result: Fortifying 0b10! Performance ------------- Evolutions (9) 4500 Regions Visited (24) 4800 Robots Destroyed (532) 2660 Value Destroyed (30571) 30571 Prototype IDs (100) 2000 Alien Tech Used (6) 1200 Bonus (24757) 24757 TOTAL SCORE: 70488 Bonus ------- High Alert Combat Kills 6423 Follower Combat Kills 1603 Network Hubs Disabled 200 Met Zhirov 300 Built Enhanced Grunts 300 Met R17 at Cetus 500 Found Hidden Lab 3000 Met R17 at Research 2000 Met MAIN.C 5000 Destroyed MAIN.C Shell 5000 Win 3000 Friendly Fire -2569 Cogmind --------- Core Integrity 1338/1600 Matter 300/300 Energy 578/1120 System Corruption 7% Temperature Warm (187) Movement Hovering (81) Location By MAIN.C's Side Parts ------- > --- POWER (3) -------- Quantum Reactor Experimental Antimatter Reactor Concept Zero-point Core > --- PROPULSION (6) --- Hovering Antigrav-Shield Exoskeleton > --- UTILITY (12) ----- Armored Scrap Engine Concept Phasing Heat Sink Concept Thermoelectric Network Concept Antigrav Storage Unit Concept Networked Targeting System (fused) Concept Networked Targeting System Experimental Core Analyzer Mini Quantum Capacitor Centrium Heavy Armor Plating AEGIS Remote Shield > --- WEAPON (5) ------- Concept Plasma Driver Concept Heavy Railcannon Concept Deflector Sword > --- INVENTORY (25) --- Singularity Reactor Concept Phasing Heat Sink Concept Thermoelectric Network Concept Chromion Battery (800) Concept NT7 Matterbank (750) Concept Networked Targeting System Centrium Medium Armor Plating Centrium Medium Armor Plating Centrium Medium Armor Plating Centrium Medium Armor Plating Long-range Tractor Beam Transdimensional Reconstructor Subatomic Replicator Concept Plasma Driver Concept Plasma Driver Core Cannon Enhanced Hardcell Cannon Concept Miniperforator Concept Heavy Railcannon Concept Rapid Grenade Launcher Concept Rapid Grenade Launcher Peak State ------------ > --- POWER ------------ Quantum Reactor Experimental Antimatter Reactor Concept Zero-point Core > --- PROPULSION ------- Hovering Antigrav-Shield Exoskeleton > --- UTILITY ---------- Armored Scrap Engine Concept Thermoelectric Network Concept Antigrav Storage Unit Concept Networked Targeting System Concept Networked Targeting System Concept Core Analysis Suite Mini Quantum Capacitor Concept Cloak Mesh Concept Cloak Mesh AEGIS Remote Shield Advanced Hacking Suite > --- WEAPON ----------- Compact HERF Cannon Concept Plasma Driver Core Cannon Concept Deflector Sword > --- INVENTORY -------- Quantum Reactor Quantum Reactor Light Quantum Reactor Combat Antigrav System Concept Phasing Heat Sink Concept Phasing Heat Sink Concept Thermoelectric Network Concept Chromion Battery Concept NT7 Matterbank Concept Networked Targeting System Long-range Tractor Beam Transdimensional Reconstructor Subatomic Replicator Concept Plasma Driver Concept Plasma Driver Enhanced Hardcell Cannon Enhanced Hardcell Cannon Concept Miniperforator Concept Heavy Railcannon Concept Heavy Railcannon Concept Rapid Grenade Launcher Concept Rapid Grenade Launcher [Rating: 292] Favorites ----------- Power Quantum Reactor Engine Cooled Ion Engine Power Core Concept Zero-point Core Reactor Quantum Reactor Propulsion Constructs Treads Light Treads Leg Cargo Legs Hover Unit Constructs Utility Armored Scrap Engine Device Armored Scrap Engine Storage Huge Storage Unit Processor Advanced Terrain Scan Processor Hackware Advanced Hacking Suite Protection Hardened Light Armor Plating Weapon Constructs Energy Gun Constructs Energy Cannon Nova Cannon Ballistic Gun Heavy Assault Rifle Ballistic Cannon Constructs Launcher Rocket Array Special Weapon Improved Remote Datajack Impact Weapon Hammer Slashing Weapon Concept Deflector Sword Special Melee Weapon Improved Datajack Build | -11 -10 -10 -8 -8 -8 -6 -6 -6 -6 -6 -5 -4 -4 -4 -4 -3 -3 -3 -3 -2 -2 -2 -1 -1 ------- Run | Yrd Mat Sub Mat Sto Rec Fac Ext Cet Arc Hub Fac Fac Upp Upp Zhi Pro Res Arm Lab Res Qua Frg Acc Com Slots Evolved 18 | . . . 4 . . 4 . . . . 2 2 . . . . 2 . . 2 . . 2 . Power 1 | . . . . . . 1 . . . . . . . . . . . . . . . . . . Propulsion 4 | . . . 2 . . . . . . . . . . . . . . . . 1 . . 1 . Utility 10 | . . . 1 . . 2 . . . . 1 2 . . . . 2 . . 1 . . 1 . Weapon 3 | . . . 1 . . 1 . . . . 1 . . . . . . . . . . . . . Parts Attached 213 | 3 6 2 23 20 4 5 4 4 4 4 15 5 2 2 5 3 7 20 6 7 8 32 15 7 Power 25 | . . . 2 3 . 1 1 2 . . . 1 . . . 1 1 4 2 1 1 3 2 . Engine 5 | . . . 1 3 . 1 . . . . . . . . . . . . . . . . . . Core 3 | . . . 1 . . . 1 . . . . . . . . . . . . . . 1 . . Reactor 17 | . . . . . . . . 2 . . . 1 . . . 1 1 4 2 1 1 2 2 . Propulsion 15 | 2 . 1 4 8 . . . . . . . . . . . . . . . . . . . . Treads 14 | 2 . . 4 8 . . . . . . . . . . . . . . . . . . . . Leg 1 | . . 1 . . . . . . . . . . . . . . . . . . . . . . Wheel . | . . . . . . . . . . . . . . . . . . . . . . . . . Hover . | . . . . . . . . . . . . . . . . . . . . . . . . . Flight . | . . . . . . . . . . . . . . . . . . . . . . . . . Utility 115 | 1 2 1 7 3 3 3 3 2 3 4 10 3 1 2 5 1 4 8 3 5 7 20 9 5 Device 61 | 1 . 1 2 2 1 1 1 . 2 1 6 2 . 2 3 . 3 3 2 2 3 16 6 1 Storage 8 | . 1 . 1 1 . . . . . . . . . . 1 . . . . . 1 2 . 1 Processor 10 | . . . . . . . . . . . . . . . . . 1 . . 3 2 1 2 1 Hackware 13 | . . . . . . . . 1 1 2 2 . . . 1 1 . 3 1 . . . 1 . Protection 23 | . 1 . 4 . 2 2 2 1 . 1 2 1 1 . . . . 2 . . 1 1 . 2 Artifact . | . . . . . . . . . . . . . . . . . . . . . . . . . Weapon 58 | . 4 . 10 6 1 1 . . 1 . 5 1 1 . . 1 2 8 1 1 . 9 4 2 Energy Gun . | . . . . . . . . . . . . . . . . . . . . . . . . . Energy Cannon 17 | . . . 3 2 . . . . . . 1 . . . . . . 2 . 1 . 4 3 1 Ballistic Gun 15 | . 2 . 4 4 1 . . . 1 . . . . . . . 2 1 . . . . . . Ballistic Cannon 9 | . . . . . . . . . . . 2 1 . . . . . 2 1 . . 1 1 1 Launcher 6 | . . . 2 . . . . . . . . . 1 . . . . 2 . . . 1 . . Special Weapon 3 | . 1 . . . . . . . . . 2 . . . . . . . . . . . . . Impact Weapon 3 | . 1 . 1 . . . . . . . . . . . . . . . . . . 1 . . Slashing Weapon 4 | . . . . . . . . . . . . . . . . 1 . 1 . . . 2 . . Piercing Weapon . | . . . . . . . . . . . . . . . . . . . . . . . . . Special Melee Weapon 1 | . . . . . . 1 . . . . . . . . . . . . . . . . . . Unidentified Prototypes 45 | . . 1 3 3 1 1 . 1 . . . . . . 2 . . 3 7 1 3 17 . 2 Corrupted Parts 5 | . . . . . . . . 2 . . . 1 . . . . . 1 . . . 1 . . System Corruption 28 | . . . . . . . . 13 . . . 5 . . . . . 7 . . . 3 . . Parts Lost 47 | . . . 6 . . . . 1 . . 5 1 . 2 . 1 2 5 . 1 3 18 . 2 Power 9 | . . . 1 . . . . . . . 2 . . . . . . 2 . . 2 2 . . Propulsion 2 | . . . 1 . . . . . . . . . . . . . . . . . . 1 . . Utility 23 | . . . 3 . . . . 1 . . . . . 1 . . 2 3 . 1 1 9 . 2 Weapon 13 | . . . 1 . . . . . . . 3 1 . 1 . 1 . . . . . 6 . . Highest Loss Streak 8 | . . . 2 . . . . 1 . . 2 1 . 1 . 1 2 3 . 1 2 8 . 1 To Critical Strikes 2 | . . . . . . . . . . . 1 . . . . . . . . . . 1 . . Average Backups 22 | 6 8 14 18 22 23 24 24 24 23 23 24 24 24 23 24 24 24 24 17 22 21 21 22 21 Power 1 | 1 1 1 . . . . . 1 2 2 2 1 1 2 2 2 2 2 1 1 1 1 1 1 Propulsion 2 | 4 2 1 2 3 4 5 4 2 2 2 1 1 1 2 2 3 2 . . . . . . . Utility 12 | . 2 7 6 10 12 16 14 13 14 15 17 16 17 16 17 17 14 13 10 11 12 11 10 8 Weapon 6 | 1 3 4 9 8 6 3 4 6 5 3 2 4 3 2 1 1 3 6 3 8 5 6 8 8 Tool/Special . | . . . . . . . . . . . . . . . . . . . . . . . . . Unused Backups 129 | . 2 2 9 . 7 2 8 7 6 2 8 6 2 . 4 1 7 15 3 2 4 14 2 16 Power 8 | . . . . . . . . . . . . . . . 1 . . 1 . . . 2 1 3 Propulsion 21 | . . 2 . . . . 2 3 . . 3 . 1 . 2 . 3 2 1 . . 1 . 1 Utility 31 | . 2 . 5 . 2 . 2 . 2 1 2 1 . . 1 . . 1 . . . 5 . 7 Weapon 66 | . . . 4 . 5 2 4 4 4 1 3 5 1 . . 1 4 11 2 2 3 6 1 3 Tool/Special 3 | . . . . . . . . . . . . . . . . . . . . . 1 . . 2 Average Slot Usage (%) 68 | . 100 93 89 89 66 52 60 59 53 53 58 59 57 58 62 60 66 67 59 64 65 60 72 70 Engine 3 | . 14 13 6 6 8 8 7 2 . . . . . . . . . . . . . . . . Core 1 | . . . . . . . 4 2 . . . 5 5 1 . . . . . . . 1 3 3 Reactor 5 | . . . . . . . . 6 13 13 10 4 5 8 10 10 9 8 9 12 11 10 7 7 Treads 6 | . 28 19 14 16 9 1 6 6 6 6 5 4 4 5 5 5 4 3 . . . 2 . . Leg 1 | . . 3 7 8 3 . . . . . . . . . . . . . . 2 3 . . . Device 14 | . 5 3 7 9 8 12 8 10 14 7 12 14 14 15 15 15 18 20 17 20 15 21 25 28 Storage 7 | . 14 13 14 16 9 6 6 6 6 6 5 5 5 5 5 5 4 4 4 4 4 4 3 3 Processor 2 | . . . . . . . . . . . . . . . . . 3 4 4 6 12 4 7 2 Hackware 2 | . . . . . . . . . . 9 4 10 10 10 10 10 9 6 4 4 3 . 2 1 Protection 4 | . 8 13 12 6 3 5 10 8 4 1 4 4 5 5 5 5 4 4 4 4 5 4 . 1 Energy Cannon 3 | . . . 5 . 3 2 2 . 1 . . 2 1 . 5 5 3 4 3 6 4 4 3 6 Ballistic Gun 6 | . 27 21 17 24 14 . . . . . . . . . . . . 1 . . . . . . Ballistic Cannon 2 | . . . . . . 3 3 5 4 6 5 6 3 4 . . . 2 4 1 3 2 6 3 Peak Build Rating 292 | 7 9 25 44 53 56 59 73 107 113 112 119 130 123 121 127 127 150 158 161 189 196 272 287 292 Average Rating 119 | 6 7 13 40 46 43 53 64 81 109 110 114 121 114 114 124 121 139 146 143 175 188 213 270 284 On Entrance 108 | 6 7 9 25 38 49 45 58 67 107 112 108 100 123 116 113 127 123 150 149 160 184 192 272 269 Avg Prop Armor Cover (%) 10 | . . . 10 9 10 . . . . . . . . . . . . . . . . . . . Naked Turns . | . . . . . . . . . . . . . . . . . . . . . . . . . Heaviest Build 205 | 13 30 32 94 134 129 112 130 142 147 152 163 161 157 149 151 151 159 167 167 200 184 205 150 176 Greatest Support 196 | 40 40 55 55 55 56 58 58 126 126 90 100 100 133 154 154 154 154 190 95 188 188 196 196 196 Greatest Overweight (x) 6 | . . 1 1 6 6 2 2 2 1 1 3 1 1 1 . . 1 1 1 2 . 1 . . Average Overweight (x) . | . . . . 1 1 1 1 1 1 1 1 1 1 . . . . . 1 . . . . . Largest Inventory Capacity 25 | 8 15 15 20 25 25 25 25 25 25 25 25 25 25 25 25 25 25 25 25 25 25 25 25 25 Average Capacity 23 | 8 10 15 19 22 25 25 25 25 25 25 25 25 25 25 25 25 25 25 25 25 25 25 25 25 Most Carried 25 | 8 15 15 20 25 25 25 25 25 25 25 25 25 25 25 25 25 25 25 25 25 25 25 25 25 Average Carried 23 | 6 8 14 18 22 23 24 24 24 24 24 24 24 24 23 24 24 24 24 17 24 24 24 24 24 Final Capacity 25 | 8 15 15 20 25 25 25 25 25 25 25 25 25 25 25 25 25 25 25 25 25 25 25 25 25 Final Carried 25 | 6 15 14 20 25 25 23 25 25 25 23 24 25 25 25 25 25 25 24 25 25 25 25 25 25 Scrap Engine Consumption 336 | . . . . . 81 16 18 18 6 2 14 26 6 9 4 8 13 25 2 15 9 48 11 5 Constructs Created 10 | . . . . . 3 1 . 1 . . 1 . . . . 1 . . 1 . 1 1 . . Constructs Modified 103 | . . . . . 28 4 5 5 3 . 8 10 3 5 . 3 1 8 1 4 8 7 . . Class Distribution -------------------- 21% | Commander-Construct 20% | Gunner 19% | Tank 14% | Hacker-Construct 10% | Construct 4% | Mutant 3% | Commander-Tank Dominant Class ---------------- Mutant | -10/Materials Mutant | -10/Subcaves Tank | -8/Materials Gunner | -8/Storage Commander-Construct | -8/Recycling Commander-Construct | -6/Factory Commander-Construct | -6/Extension Commander-Construct | -6/Cetus Commander-Construct | -6/Archives Commander-Construct | -6/Hub_04(d) Construct | -5/Factory Hacker-Construct | -4/Factory Hacker-Construct | -4/Upper Caves Hacker-Construct | -4/Upper Caves Hacker-Construct | -4/Zhirov Hacker-Construct | -3/Proximity Caves Hacker-Construct | -3/Research Hacker-Construct | -3/Armory Tank | -3/Lab Tank | -2/Research Construct | -2/Quarantine Tank | -2/Protoforge Gunner | -1/Access Gunner | -1/Command Resources | -11 -10 -10 -8 -8 -8 -6 -6 -6 -6 -6 -5 -4 -4 -4 -4 -3 -3 -3 -3 -2 -2 -2 -1 -1 ----------- Run | Yrd Mat Sub Mat Sto Rec Fac Ext Cet Arc Hub Fac Fac Upp Upp Zhi Pro Res Arm Lab Res Qua Frg Acc Com Matter Collected 21070 | 233 46 119 829 811 990 126 515 323 365 230 1273 1070 1294 772 622 696 958 2650 140 976 898 4582 284 268 Remotely 1305 | . . . . . . . . . . . 268 243 58 292 . . . 74 . . 122 248 . . Salvage Created 30641 | 177 73 105 1786 895 2197 370 1570 468 396 442 2406 1404 691 706 372 143 1490 2889 . 1352 1362 4840 1542 2965 Parts 1315 | 14 6 3 83 54 118 17 76 17 23 19 113 52 36 30 7 8 44 118 . 46 69 206 71 85 Haulers Intercepted 13 | . . . 5 5 . . . . . . . . . . . . 1 . . 2 . . . . Recyclers Shooed 11 | . . . 1 . 6 . . . . . 2 1 . . . . . . . 1 . . . . Parts Field Recycled . | . . . . . . . . . . . . . . . . . . . . . . . . . Retrieved Matter . | . . . . . . . . . . . . . . . . . . . . . . . . . Parts Self-Destructed 54 | . . 3 . . . . . . . . . . 32 12 2 5 . . . . . . . . Prevented 14 | . . . . . . . . . . . . . . 14 . . . . . . . . . . Parts Restored 11 | . . . . . . . . . . . . . . . . . . . . . . 11 . . Faulty 11 | . . . . . . . . . . . . . . . . . . . . . . 11 . . Kills | -11 -10 -10 -8 -8 -8 -6 -6 -6 -6 -6 -5 -4 -4 -4 -4 -3 -3 -3 -3 -2 -2 -2 -1 -1 ------- Run | Yrd Mat Sub Mat Sto Rec Fac Ext Cet Arc Hub Fac Fac Upp Upp Zhi Pro Res Arm Lab Res Qua Frg Acc Com Combat Hostiles Destroyed 383 | . 3 2 28 12 5 9 24 4 1 3 44 22 15 12 . 4 18 39 . 12 16 60 26 24 Melee 8 | . . . 1 . . . . . . . . . . . . . 4 3 . . . . . . Guns 33 | . 3 2 11 12 5 . . . . . . . . . . . . . . . . . . . Cannons 174 | . . . 7 . . 4 14 1 1 3 22 10 11 3 . 4 8 23 . 8 11 15 14 15 AOE 84 | . . . 8 . . 4 5 . . . 21 6 4 6 . . . 1 . . 5 15 9 . Classes Destroyed 27 | 2 2 1 9 . 2 1 2 . . 1 . . . . . . . . . . . 5 . 2 Worker 26 | . . . 4 1 . . . . . 1 8 3 . . . . 1 . . . 2 2 3 1 Builder 35 | . . . 2 . 18 1 1 . . . 8 1 . . . . . . . 3 . . 1 . Tunneler 8 | 4 . . . . . . 1 . . . 1 1 . . . . . . . . . . 1 . Hauler 13 | . . . 5 5 . . . . . . . . . . . . 1 . . 2 . . . . Recycler 27 | 1 . . 3 . 13 1 . . . 1 2 2 . . . . . . . 1 3 . . . Carrier 1 | . . . . . . . . . . . . . . . . . . . . . . 1 . . Mechanic 5 | . . . . . . . 1 . . . 1 . . . . . 1 . . . . 2 . . Operator 13 | . . . 1 . . . . . 9 . . . . . . . 1 . . . 1 1 . . Drone 1 | . . . . . . . . . . . . . . . . . . . . . . 1 . . Watcher 12 | . . . 1 1 . . . 1 . 1 2 . . . . . . 1 . 1 2 1 . 1 Swarmer 70 | . 2 . 3 1 . 4 1 . . . 8 9 9 5 . 4 5 7 . 1 5 . 6 . Grunt 94 | . 1 2 18 6 . 3 10 . . 2 13 3 4 7 . . 2 8 . . 2 3 7 3 Brawler 9 | . . . 1 . . . 1 . . . 1 1 . . . . . . . 1 . 3 1 . Duelist 15 | . . . 1 . . . 1 . . . 2 1 1 . . . . 6 . 1 . 2 . . Protector 4 | . . . . . . 2 . . . . . . . . . . . 2 . . . . . . Researcher 2 | . . . . . . . . . . . . . . . . . . . . . . 2 . . Sentry 64 | . . . 3 6 2 2 8 . 1 . 10 3 1 . . . 7 7 . 1 . 11 1 1 Specialist 4 | . . . 2 . . . 2 . . . . . . . . . . . . . . . . . Hunter 19 | . . . . . . . . . . 1 2 2 . . . . 4 2 . 2 . 2 4 . Programmer 51 | . . . . . 1 . . . . . 8 3 . . . . . 7 . 6 9 6 7 4 Behemoth 1 | . . . . . . . 1 . . . . . . . . . . . . . . . . . Cetus Guard 4 | . . . . . . . . 4 . . . . . . . . . . . . . . . . Enhanced Q-Series 15 | . . . . . . . . . . . . . . . . . . . . . . . . 15 Hotshot 13 | . . . . . . . . . . . . . . . . . . . . . . 13 . . Decapitator 12 | . . . . . . . . . . . . . . . . . . . . . . 12 . . Immortal 3 | . . . . . . . . . . . . . . . . . . . . . . 3 . . Executioner 1 | . . . . . . . . . . . . . . . . . . . . . . . . 1 V-Series 4 | . . . . . . . . . . . . . . . . . . . . . . 4 . . Artisan 1 | . . 1 . . . . . . . . . . . . . . . . . . . . . . Subdweller 2 | . . . . . 2 . . . . . . . . . . . . . . . . . . . Thug 1 | . . . . . . . . . . 1 . . . . . . . . . . . . . . Savage 1 | . . . . . . . . 1 . . . . . . . . . . . . . . . . Best Kill Streak 14 | 3 2 1 8 4 3 5 9 3 5 2 14 9 5 7 . 4 4 7 . 5 7 14 10 8 Combat Bots Only 12 | . 2 1 6 4 1 4 6 2 1 2 7 6 5 7 . 4 4 7 . 2 5 12 9 7 Max Kills in Single Turn 8 | 1 1 1 4 1 1 8 5 1 1 1 6 5 4 2 . 1 1 2 . 1 3 3 5 2 Gunslinging . | . . . . . . . . . . . . . . . . . . . . . . . . . Exploded 5 | . . . 3 . . 4 2 . . . 3 2 4 2 . . . 1 . . 2 3 5 . Melee 1 | . . . 1 . . . . . . . . . . . . . 1 1 . . . . . . Uniques/NPCs Destroyed 2 | . . . . . . . . 1 . . . . . . . . . . . . . . . 1 A7 (-6/Cetus) MAIN.C Shell (-1/Command) Combat | -11 -10 -10 -8 -8 -8 -6 -6 -6 -6 -6 -5 -4 -4 -4 -4 -3 -3 -3 -3 -2 -2 -2 -1 -1 -------- Run | Yrd Mat Sub Mat Sto Rec Fac Ext Cet Arc Hub Fac Fac Upp Upp Zhi Pro Res Arm Lab Res Qua Frg Acc Com Hostile Shots Fired 2109 | . 9 22 133 62 16 50 140 17 9 32 225 83 59 70 . 42 112 214 . 66 96 465 35 152 Missed 668 | . 2 12 33 20 7 16 55 7 1 11 72 39 9 22 . 3 33 70 . 22 20 154 12 48 Deflected 12 | . . . . . . . . . . . . . . . . . . . . . . 2 2 8 Hits 1441 | . 7 10 100 42 9 34 85 10 8 21 153 44 50 48 . 39 79 144 . 44 76 311 23 104 Melee 73 | . . . . . . . 1 . . . 1 1 3 . . . . 1 . 2 . 64 . . Projectile 1368 | . 7 10 100 42 9 34 84 10 8 21 152 43 47 48 . 39 79 143 . 42 76 247 23 104 AOE 15 | . . . . . . . . . . . . . . . . . . . . . . 6 1 8 Critical Strikes 102 | . . . 3 3 2 . 3 1 . 5 9 2 2 4 . . 1 9 . 2 4 42 1 9 Part Disruptions 1 | . . . . . . . . . . . . . . . . . . . . . . . . 1 Damage Taken 29892 | . 59 128 1604 789 185 272 833 245 201 536 3625 991 921 930 . 799 1627 2862 . 531 1528 9073 294 1859 Core 2462 | . 17 . 202 45 20 32 85 25 23 . 322 182 39 115 . 47 171 189 . 60 32 626 13 217 Absorbed by Shields 6383 | . . 6 59 . . 67 171 62 . 105 95 . . . . 93 207 562 . 554 498 1822 280 1802 Reduced by Siege Mode 5 | . . . . . . . . . . . 5 . . . . . . . . . . . . . Ignored by Resistances 43 | . . . . . . . 43 . . . . . . . . . . . . . . . . . Regen/Repaired (Parts) 9889 | . . . . 77 26 165 231 292 . . 1299 1149 390 777 16 290 369 1864 144 70 959 1745 26 . Core Remaining (%) 71 | 100 . 93 . . 51 . . . . 80 67 . . . . 66 . . 68 . . 38 . 83 Volleys Fired 1605 | 7 7 17 81 48 124 25 82 26 39 21 144 68 42 28 26 16 37 113 164 47 77 174 46 146 Largest 3 | 2 2 2 3 3 3 1 1 1 1 1 3 2 1 2 1 1 1 2 1 2 2 2 1 1 Hottest 410 | 40 100 40 183 80 88 88 70 70 133 133 190 183 132 121 246 246 246 281 113 261 261 410 140 300 Shots Fired 1940 | 14 13 34 196 137 196 25 82 25 39 21 154 74 42 28 25 16 37 116 158 51 80 185 47 145 Gun 421 | 14 12 34 104 134 122 . . . . . . . . . . . . 1 . . . . . . Cannon 1421 | . . . 83 3 74 25 78 25 39 21 133 72 40 18 25 14 37 108 158 47 77 155 44 145 Launcher 94 | . . . 9 . . . 4 . . . 20 2 2 10 . . . 7 . 4 3 30 3 . Special 4 | . 1 . . . . . . . . . 1 . . . . 2 . . . . . . . . Kinetic 727 | 14 12 34 104 134 195 4 21 . 27 21 57 38 . . . . 4 34 . 5 20 1 1 1 Thermal 786 | . 1 . 83 3 1 4 6 8 12 . 76 5 40 18 25 16 . 9 158 26 42 66 43 144 Explosive 54 | . . . 9 . . . 4 . . . 20 2 . . . . . . . . 3 13 3 . Electromagnetic 372 | . . . . . . 17 51 17 . . . 29 2 10 . . 33 73 . 20 15 105 . . Robot Hit Streak 75 | 5 3 15 14 17 12 3 11 5 6 6 21 10 4 5 6 2 6 8 . 5 5 34 47 75 Robot Miss Streak 7 | 2 2 3 3 2 6 4 4 2 3 1 6 3 5 5 1 6 3 7 . 4 7 4 1 1 Penetration Max 2 | . . . . . . . 1 . . . 2 1 . . . . . . . . . 1 1 1 Secondary Targets 2 | . . . . 2 . . . . . . . . . . . . . . . . . . . . Max Gunslinging Chain 1 | . . . . 1 . . . . . . . . . . . . . . . . . . . . Capacitor 175 | . . . . . . . . . . . . . . . . . . . . . . . 34 141 Shots Hit Robots 1097 | 8 7 26 115 95 117 9 84 19 22 5 89 45 19 9 10 5 32 65 . 25 29 107 33 122 Core Hits 793 | 6 5 5 68 33 51 8 60 10 8 6 143 41 14 19 4 4 14 43 . 17 25 123 37 49 Critical Kills 31 | . . . 2 . . . . . . . 6 6 . . . . . . . 1 . 3 3 10 Critical Parts Destroyed 15 | . . 2 . . . . . . 1 . 6 3 . . . . . 2 . . . 1 . . Critical Strikes 53 | . . 2 2 . . . . 1 2 . 13 9 . . . . 1 3 . 1 . 6 3 10 Burn 1 | . . . . . . . . . . . 1 . . . . . . . . . . . . . Meltdown 19 | . . . 2 . . . . . . . . . . . . . . . . 1 . 3 3 10 Destroy 31 | . . 1 . . . . . 1 2 . 12 9 . . . . . 3 . . . 3 . . Smash 1 | . . 1 . . . . . . . . . . . . . . . . . . . . . . Sever 1 | . . . . . . . . . . . . . . . . . 1 . . . . . . . Melee Attacks 108 | . 3 6 5 . . 1 28 . . . . . . . . . 21 21 . . . 20 3 . Impact 14 | . 3 6 5 . . . . . . . . . . . . . . . . . . . . . Slashing 65 | . . . . . . . . . . . . . . . . . 21 21 . . . 20 3 . Piercing . | . . . . . . . . . . . . . . . . . . . . . . . . . Sneak Attacks 35 | . . 1 1 . . 1 28 . . . . . . . . . 2 . . . . 1 1 . Combat Hostiles . | . . . . . . . . . . . . . . . . . . . . . . . . . Follow-up Attacks . | . . . . . . . . . . . . . . . . . . . . . . . . . Damage Inflicted 82296 | 103 102 398 3511 1692 3106 1173 3055 916 1602 885 9508 2855 1450 1411 784 711 2887 7401 . 2825 4351 16328 4407 10835 Guns 4230 | 103 92 325 801 1631 1250 . . . . . . . . . . . . 28 . . . . . . Cannons 59097 | . . . 1450 . 1805 465 2417 916 1602 847 5227 2100 1348 575 784 711 2446 6120 . 2408 3478 10716 2847 10835 Explosions 16871 | . . . 1047 46 51 708 622 . . . 4155 738 102 836 . . . 665 . 417 873 5173 1438 . Melee 1841 | . . 73 178 . . . . . . . . . . . . . 441 588 . . . 439 122 . Ramming 257 | . 10 . 35 15 . . 16 . . 38 126 17 . . . . . . . . . . . . Kinetic 17378 | 103 92 325 801 1631 3055 . 706 . 668 847 3048 284 . . . . 324 3235 . 527 1732 . . . Thermal 32335 | . . . 1450 . 51 . 372 325 934 . 2216 419 1348 758 784 711 . 39 . 685 581 7980 2847 10835 Explosive 11394 | . . . 1047 46 . 708 493 . . . 4118 542 . . . . . . . . 873 2129 1438 . Electromagnetic 19091 | . . . . . . 465 1468 591 . . . 1593 102 653 . . 2122 3539 . 1613 1165 5780 . . Impact 251 | . . 73 178 . . . . . . . . . . . . . . . . . . . . . Slashing 1590 | . . . . . . . . . . . . . . . . . 441 588 . . . 439 122 . Piercing . | . . . . . . . . . . . . . . . . . . . . . . . . . Highest Corruption 24 | . . . 1 1 2 . 1 14 14 5 9 7 7 8 8 8 . 22 22 8 18 24 2 7 Average Corruption 5 | . . . 1 1 1 . 1 7 9 1 5 6 7 7 8 8 . 15 22 7 7 13 1 3 Corruption Purged 85 | . . . . . . . . . 14 . . . . . . . . . . . 8 63 . . Corruption Blocked . | . . . . . . . . . . . . . . . . . . . . . . . . . Effects 530 | . . . 11 11 98 . 1 22 11 3 37 27 27 14 6 13 . 31 53 14 28 60 35 28 Message Errors 114 | . . . 3 2 18 . . 7 7 1 7 5 4 2 1 3 . 10 11 3 6 10 7 7 Matter Fused 123 | . . . 1 2 30 . 1 7 . . 5 3 9 1 1 5 . 8 11 6 6 6 11 10 Heat Flow Errors 63 | . . . 2 . 12 . . 2 . . 6 3 6 2 1 1 . 4 5 1 5 11 1 1 Energy Discharges 67 | . . . 1 1 15 . . 1 3 . 3 4 4 3 1 1 . . 7 1 6 4 8 4 Parts Rejected 7 | . . . 1 . . . . . . . . . 1 . . . . . . . 2 2 . 1 Parts Fused 6 | . . . 1 . . . . . . . 1 . . . 1 1 . 1 . . . . 1 . Data Loss (minor) 62 | . . . . 4 8 . . 3 . 1 7 5 2 5 . 1 . 1 6 2 1 10 5 1 Data Loss (major) 31 | . . . 1 2 9 . . 1 . 1 1 2 . . . . . 2 4 1 1 4 . 2 Misfires 15 | . . . . . 3 . . . . . 2 3 . . . . . 2 1 . . 3 1 . Alerts 13 | . . . 1 . 3 . . . 1 . . 1 1 . . 1 . . 1 . . 2 1 1 Misdirections 7 | . . . . . . . . . . . . . . . . . . 3 . . . 4 . . Weapon Failures 22 | . . . . . . . . 1 . . 5 1 . 1 1 . . . 7 . 1 4 . 1 Overload Shots . | . . . . . . . . . . . . . . . . . . . . . . . . . Overflow Damage 7355 | . . 73 93 . 199 349 25 63 519 120 425 141 47 64 91 115 196 1189 . 399 1138 1122 533 454 Projectiles 6479 | . . . 42 . 198 8 24 63 519 120 332 118 47 58 91 115 186 1164 . 399 1108 1009 424 454 Explosions 641 | . . . 21 . 1 341 1 . . . 93 23 . 6 . . . . . . 30 113 12 . Melee 235 | . . 73 30 . . . . . . . . . . . . . 10 25 . . . . 97 . Knockbacks 42 | . . 1 . . 7 . 1 . 2 1 14 5 . . . . 2 6 . . 3 . . . Impact 1 | . . 1 . . . . . . . . . . . . . . . . . . . . . . Kinetic 38 | . . . . . 7 . 1 . 2 1 12 5 . . . . 2 6 . . 2 . . . Secondary 3 | . . . . . . . . . . . 2 . . . . . . . . . 1 . . . Self-Inflicted Damage 1183 | . . . 62 61 18 . 41 . . . 68 101 . 93 . . . 135 . 58 90 428 28 . Shots 55 | . . . 3 1 1 . 1 . . . 4 3 . 3 . . . 7 . 5 1 23 3 . Rammed 11 | . 4 . . . . . 1 . . 1 4 1 . . . . . . . . . . . . Targets Rammed 17 | . 4 . 3 2 . . 1 . . 1 5 1 . . . . . . . . . . . . Kicked 5 | . . . 3 2 . . . . . . . . . . . . . . . . . . . . Crushed 1 | . . . . . . . . . . . 1 . . . . . . . . . . . . . Highest Temperature 564 | . 20 . 474 321 224 369 334 405 324 341 476 452 384 172 558 564 411 409 213 455 434 212 223 223 Average Temperature 108 | . 12 . 101 80 67 111 89 98 108 97 110 127 147 59 152 270 121 114 43 115 176 61 101 124 Received Heat Transfer 3863 | . 6 63 825 333 36 86 302 13 27 26 571 120 196 138 . . 151 189 . . 36 611 16 118 Thermoelectric Energy+ 3059 | . . . . . . . . . . . . . . . . . . . . . . . 442 2617 Effects 37 | . . . 1 5 . . 1 . . . 4 5 2 . 3 2 2 3 . 1 8 . . . Shutdowns 10 | . . . . . . . . . . . 2 1 . . 2 . 1 2 . 1 1 . . . Energy Bleed 6 | . . . . . . . 1 . . . 1 1 . . . 1 . 1 . . 1 . . . Interference 17 | . . . 1 5 . . . . . . 1 2 2 . . . 1 . . . 5 . . . Matter Decay 1 | . . . . . . . . . . . . . . . 1 . . . . . . . . . Short Circuit 2 | . . . . . . . . . . . . . . . . 1 . . . . 1 . . . Damage (minor) 1 | . . . . . . . . . . . . 1 . . . . . . . . . . . . Siege Activations 2 | . . . . . . . . . . . 2 . . . . . . . . . . . . . Total Turns 24 | . . . . . . . . . . . 24 . . . . . . . . . . . . . Longest Duration 19 | . . . . . . . . . . . 19 . . . . . . . . . . . . . Martial Activations . | . . . . . . . . . . . . . . . . . . . . . . . . . Shielding Activations . | . . . . . . . . . . . . . . . . . . . . . . . . . Robots Disrupted 2 | . . . . . . . . . . . . 1 . . . . . . . . . 1 . . Combat Hostiles 2 | . . . . . . . . . . . . 1 . . . . . . . . . 1 . . Robots Corrupted 76 | . . 1 1 . . 1 5 4 . . 1 7 . 3 . . 7 13 . 4 1 28 . . Combat Hostiles 66 | . . . . . . 1 5 3 . . . 6 . 3 . . 6 12 . 3 . 27 . . Parts Fried 184 | . . . 3 . . . 8 5 . . 2 10 . 5 . . 21 57 . 20 12 41 . . Impact Corruptions 7 | . . 2 2 . . . . . . . 2 . . . . . . . . . 1 . . . Robots Melted 20 | . . . 2 . . . . . . . 1 . . . . . . . . 1 . 3 3 10 Combat Hostiles 18 | . . . 1 . . . . . . . 1 . . . . . . . . 1 . 3 3 9 Parts Melted 82 | . . . 12 . 1 . . . 1 . 12 . 1 . . 1 . . . 6 3 4 4 37 Heat Transferred 19576 | . . . 2800 . 100 . 150 259 370 . 2300 198 703 583 407 333 . 37 . 518 444 2361 1624 6389 Parts Sabotaged 2 | . . . . . . . . . . . 2 . . . . . . . . . . . . . Parts Stolen . | . . . . . . . . . . . . . . . . . . . . . . . . . Parts Stripped . | . . . . . . . . . . . . . . . . . . . . . . . . . Power Chain Reactions 11 | . . . . . 2 . 2 . . . . 1 2 2 . . . . . 1 . 1 . . Alert | -11 -10 -10 -8 -8 -8 -6 -6 -6 -6 -6 -5 -4 -4 -4 -4 -3 -3 -3 -3 -2 -2 -2 -1 -1 ------- Run | Yrd Mat Sub Mat Sto Rec Fac Ext Cet Arc Hub Fac Fac Upp Upp Zhi Pro Res Arm Lab Res Qua Frg Acc Com Maximum Alert Level 5 | . . . 1 2 1 2 4 2 2 2 4 3 . . . . 1 2 . 1 2 5 4 3 Low Security (%) 43 | 100 100 . 14 20 86 1 56 . 16 32 46 . . . . . 70 63 . 94 56 . . 69 Level 1 19 | . . . 85 2 13 74 18 . 76 66 12 8 . . . . 29 17 . 5 . 4 . . Level 2 15 | . . . . 76 . 24 4 100 6 . 19 75 . . . . . 18 . . 42 19 . 13 Level 3 11 | . . . . . . . 9 . . . 6 16 . . . . . . . . . 20 58 16 Level 4 9 | . . . . . . . 11 . . . 15 . . . . . . . . . . 34 41 . Level 5 1 | . . . . . . . . . . . . . . . . . . . . . . 20 . . High Security . | . . . . . . . . . . . . . . . . . . . . . . . . . Max Security . | . . . . . . . . . . . . . . . . . . . . . . . . . Peak Influence 1687 | 15 120 . 377 668 288 469 1237 683 412 408 1585 774 . . . . 311 674 . 215 534 1687 1350 928 Initial 1012 | . 3 . . 129 241 420 164 672 220 50 125 774 . . . . 33 69 . . 85 274 1012 626 Average 431 | 4 31 . 241 467 112 340 370 569 289 239 448 590 . . . . 154 208 . 97 247 1100 1095 372 Influence Increases 17779 | 25 179 65 996 1211 596 776 1619 488 312 713 2152 898 387 270 15 150 637 1253 . 460 1013 2207 875 482 Destroy 0b10 Robot/C 8180 | . 60 40 560 440 80 200 700 240 80 220 880 440 320 240 . 80 360 740 . 240 320 1240 520 180 Destroy 0b10 Robot/NC 830 | 25 . . 80 40 225 10 30 10 45 20 110 35 . . 15 . 20 15 . 35 40 45 25 5 Destroy Leader 1536 | . 10 10 122 162 . 40 54 20 . 64 234 100 20 30 . 10 102 156 . 64 54 132 100 52 Allied During Kill 1534 | . . . . 192 42 23 634 213 125 302 1 . 2 . . . . . . . . . . . Successful Hack 354 | . 17 . 25 36 26 27 35 . . . 47 12 . . . . 55 8 . 22 44 . . . Select Force Hacks 230 | . . . . . 180 . . . . 50 . . . . . . . . . . . . . . Disable Machine 1230 | . . . 60 105 15 105 15 . 45 30 195 30 . . . . . 90 . 15 135 315 45 30 Anti-Garrison Action 550 | . . . . 200 . . . . . . . 200 . . . . . . . . . 150 . . Destroy Structure 2255 | . 2 . 119 21 28 71 76 5 17 27 610 66 . . . . 40 154 . 84 360 205 155 215 Advance Influence 300 | . . . . . . 300 . . . . . . . . . . . . . . . . . . Partial Spotted 60 | . . . . . . . . . . . 15 . . . . . 30 . . . . . 15 . Lose Combat Pursuer 720 | . 90 15 30 15 . . 75 . . . 60 15 45 . . 60 30 90 . . 60 120 15 . Influence Decreases 16851 | 20 184 65 689 897 929 728 754 1139 718 600 828 1725 688 321 417 100 555 719 666 307 677 1009 1583 533 Entered New Map 5618 | . 2 . . 178 380 168 172 529 330 94 132 807 280 87 402 . 17 63 666 . 68 215 675 353 Time Decay 8799 | 20 182 65 629 559 549 350 562 380 368 246 626 458 368 214 15 90 368 470 . 297 441 614 758 170 Lost Part 460 | . . . 60 . . . . 10 . . 50 10 . 20 . 10 20 50 . 10 30 180 . 10 Lost Ally 800 | . . . . 160 . 60 20 220 20 260 20 . 40 . . . . . . . . . . . Purge Threat 1174 | . . . . . . 150 . . . . . 450 . . . . 150 136 . . 138 . 150 . Squads Dispatched 102 | . 2 . 3 3 . 1 5 . . 5 14 9 . . . . 8 7 . 3 5 11 24 2 Investigation 23 | . 1 . . 1 . . 2 . . 4 2 3 . . . . 4 3 . 1 . 1 1 . Extermination 33 | . . . . . . 1 . . . . 4 2 . . . . 1 4 . 2 4 4 10 1 Reinforcement 15 | . 1 . 3 . . . 2 . . 1 3 1 . . . . 3 . . . 1 . . . Assault 25 | . . . . 1 . . 1 . . . 2 1 . . . . . . . . . 6 13 1 Garrison 6 | . . . . 1 . . . . . . 3 2 . . . . . . . . . . . . Intercept . | . . . . . . . . . . . . . . . . . . . . . . . . . Searches Triggered . | . . . . . . . . . . . . . . . . . . . . . . . . . Construction Impeded 4 | . . . 1 . . . . . . . 3 . . . . . . . . . . . . . Haulers Reinforced 1 | . . . . . . . . . . . . . . . . . 1 . . . . . . . Active Scanning Responses . | . . . . . . . . . . . . . . . . . . . . . . . . . Cargo Convoy Interrupts . | . . . . . . . . . . . . . . . . . . . . . . . . . Stealth | -11 -10 -10 -8 -8 -8 -6 -6 -6 -6 -6 -5 -4 -4 -4 -4 -3 -3 -3 -3 -2 -2 -2 -1 -1 --------- Run | Yrd Mat Sub Mat Sto Rec Fac Ext Cet Arc Hub Fac Fac Upp Upp Zhi Pro Res Arm Lab Res Qua Frg Acc Com Distress Signals 44 | . 1 . 5 1 1 . 2 2 . 2 4 3 . . . . 4 7 . . 1 2 1 8 Communications Jammed 15 | . . . . . . . . . . . 1 2 . . . . . . . 8 . 4 . . Distress Signals 14 | . . . . . . . . . . . . 2 . . . . . . . 8 . 4 . . Times Spotted 622 | . 7 4 49 26 4 11 46 10 15 23 72 26 16 17 1 7 36 57 . 14 25 87 25 44 Peak Tracking Total 13 | . 10 2 8 4 1 5 7 5 2 13 7 4 4 7 1 5 8 9 . 3 5 11 6 7 Tactical Retreats 34 | . 2 1 1 1 . . 3 . . . 4 1 2 . . 4 2 5 . . 2 5 1 . Traps | -11 -10 -10 -8 -8 -8 -6 -6 -6 -6 -6 -5 -4 -4 -4 -4 -3 -3 -3 -3 -2 -2 -2 -1 -1 ------- Run | Yrd Mat Sub Mat Sto Rec Fac Ext Cet Arc Hub Fac Fac Upp Upp Zhi Pro Res Arm Lab Res Qua Frg Acc Com Traps Triggered 38 | . 2 . 1 3 . . 2 . . 1 3 3 . . . . 3 3 . 1 1 15 . . Indirectly 3 | . . . . . . . . . . . . . . . . . . 1 . . . 2 . . Trap Hack Attempts . | . . . . . . . . . . . . . . . . . . . . . . . . . Triggered . | . . . . . . . . . . . . . . . . . . . . . . . . . Disarmed . | . . . . . . . . . . . . . . . . . . . . . . . . . Reprogrammed . | . . . . . . . . . . . . . . . . . . . . . . . . . Reused . | . . . . . . . . . . . . . . . . . . . . . . . . . Traps Extracted . | . . . . . . . . . . . . . . . . . . . . . . . . . Installed . | . . . . . . . . . . . . . . . . . . . . . . . . . Triggered . | . . . . . . . . . . . . . . . . . . . . . . . . . Machines | -11 -10 -10 -8 -8 -8 -6 -6 -6 -6 -6 -5 -4 -4 -4 -4 -3 -3 -3 -3 -2 -2 -2 -1 -1 ---------- Run | Yrd Mat Sub Mat Sto Rec Fac Ext Cet Arc Hub Fac Fac Upp Upp Zhi Pro Res Arm Lab Res Qua Frg Acc Com Machines Disabled 107 | . . 2 4 7 1 7 2 . 3 2 13 2 . . 3 . . 6 10 1 9 29 3 3 Max in Single Turn 6 | . . 1 1 1 1 6 1 . 1 1 2 2 . . 1 . . 2 1 1 1 2 1 1 Garrison Access 6 | . . . 1 1 . . . . . 1 . 1 . . . . 1 . . . . 1 . . Network Hub 1 | . . . . . . . . . . 1 . . . . . . . . . . . . . . Machines Repaired . | . . . . . . . . . . . . . . . . . . . . . . . . . Machines Dismantled . | . . . . . . . . . . . . . . . . . . . . . . . . . Machines Sabotaged 1 | . . . . . . . . . . 1 . . . . . . . . . . . . . . Overloaded Fab Kills . | . . . . . . . . . . . . . . . . . . . . . . . . . Hacking | -11 -10 -10 -8 -8 -8 -6 -6 -6 -6 -6 -5 -4 -4 -4 -4 -3 -3 -3 -3 -2 -2 -2 -1 -1 --------- Run | Yrd Mat Sub Mat Sto Rec Fac Ext Cet Arc Hub Fac Fac Upp Upp Zhi Pro Res Arm Lab Res Qua Frg Acc Com Machines Accessed 121 | . 5 . 7 13 12 6 10 . . 5 9 8 . . 4 . 12 9 . 5 7 2 5 2 Terminals 76 | . 4 . 6 11 5 4 9 . . 4 4 6 . . . . 6 5 . 1 5 1 3 2 Fabricators 7 | . . . . . . . . . . . 1 . . . . . 2 3 . 1 . . . . Repair Stations 5 | . . . . 1 . 1 . . . . . . . . . . 2 . . . 1 . . . Recycling Units 17 | . 1 . . . 6 1 1 . . . 4 . . . . . . 1 . 2 . . 1 . Scanalyzers 3 | . . . . . . . . . . . . 1 . . . . 1 . . 1 . . . . Garrison Access 8 | . . . 1 1 . . . . . 1 . 1 . . . . 1 . . . 1 1 1 . Total Hacks 307 | . 14 . 20 36 21 17 19 . . 8 24 24 . . 17 . 31 29 . 11 20 2 10 4 Successful 151 | . 7 . 13 18 17 5 8 . . 7 6 9 . . 17 . 16 15 . 4 6 1 1 1 Failed 153 | . 6 . 7 18 4 12 11 . . 1 18 14 . . . . 14 14 . 7 14 1 9 3 Catastrophic 40 | . 1 . 1 4 1 3 4 . . . 6 6 . . . . 3 2 . 1 2 . 4 2 Database Lockouts 3 | . 1 . . . . . . . . . . 1 . . . . 1 . . . . . . . Manual 147 | . 13 . 14 27 20 7 1 1 . 6 10 15 . . . . 18 8 . 1 3 . . 3 Terminals 191 | . 13 . 16 32 11 8 15 . . 6 12 19 . . . . 19 11 . 2 15 1 7 4 Fabricators 26 | . . . . . . . . . . . 1 . . . . . 4 16 . 5 . . . . Repair Stations 12 | . . . . 2 . 3 . . . . . . . . . . 5 . . . 2 . . . Recycling Units 36 | . 1 . . . 8 6 4 . . . 11 . . . . . . 2 . 3 . . 1 . Scanalyzers 6 | . . . . . . . . . . . . 3 . . . . 2 . . 1 . . . . Garrison Access 17 | . . . 4 2 . . . . . 2 . 2 . . . . 1 . . . 3 1 2 . Terminal Hacks 67 | . 1 . 4 5 3 2 7 . . 2 1 5 . . 17 . 6 5 . 1 5 1 1 1 Record 5 | . . . . . . . . . . . . . . . 5 . . . . . . . . . Part Schematic 5 | . . . . . . . . . . . . . . . 4 . . 1 . . . . . . Robot Analysis 6 | . 1 . 1 . . . . . . . . . . . 4 . . . . . . . . . Prototype ID Bank 5 | . . . 1 . . . . . . . . . . . 4 . . . . . . . . . Open Door 13 | . . . . 3 . 1 7 . . . . . . . . . . 2 . . . . . . Branch Access Points 3 | . . . 1 . . . . . . . . 1 . . . . 1 . . . . . . . Terminal Index 7 | . . . 1 2 1 . . . . . 1 . . . . . 1 . . 1 . . . . Fabricator Index 1 | . . . . . . . . . . . . . . . . . 1 . . . . . . . Alert Level 1 | . . . . . . . . . . . . . . . . . . . . . . . . 1 Unreport Threat 9 | . . . . . . 1 . . . . . 3 . . . . 1 1 . . 2 . 1 . Maintenance Status 2 | . . . . . . . . . . . . . . . . . 1 . . . 1 . . . Recall Investigation 1 | . . . . . . . . . . . . . . . . . . . . . 1 . . . Recall Extermination 2 | . . . . . . . . . . . . 1 . . . . . 1 . . . . . . Hauler Manifests 1 | . . . . . . . . . . . . . . . . . 1 . . . . . . . Zone Layout 3 | . . . . . . . . . . 2 . . . . . . . . . . 1 . . . Proto ID Catalog 1 | . . . . . . . . . . . . . . . . . . . . . . 1 . . Release Object 2 | . . . . . 2 . . . . . . . . . . . . . . . . . . . Fabricator Hacks 12 | . . . . . . . . . . . 1 . . . . . 1 8 . 2 . . . . Network Status 2 | . . . . . . . . . . . 1 . . . . . . 1 . . . . . . Load Schematic 6 | . . . . . . . . . . . . . . . . . 1 4 . 1 . . . . Build 4 | . . . . . . . . . . . . . . . . . . 3 . 1 . . . . Repair Station Hacks 8 | . . . . 2 . 1 . . . . . . . . . . 4 . . . 1 . . . Scan Component 5 | . . . . 1 . 1 . . . . . . . . . . 2 . . . 1 . . . Repair 3 | . . . . 1 . . . . . . . . . . . . 2 . . . . . . . Recycling Unit Hacks 6 | . . . . . . 1 1 . . . 2 . . . . . . 1 . 1 . . . . Retrieve Components 6 | . . . . . . 1 1 . . . 2 . . . . . . 1 . 1 . . . . Scanalyzer 4 | . . . . . . . . . . . . 3 . . . . 1 . . . . . . . Insert Component 1 | . . . . . . . . . . . . 1 . . . . . . . . . . . . Retrieve Study 3 | . . . . . . . . . . . . 2 . . . . 1 . . . . . . . Garrison Access Hacks 3 | . . . 1 . . . . . . 1 . . . . . . 1 . . . . . . . Seal Access 3 | . . . 1 . . . . . . 1 . . . . . . 1 . . . . . . . Unauthorized Hacks 50 | . 6 . 8 11 13 1 . . . 4 2 1 . . . . 3 1 . . . . . . Terminals 38 | . 6 . 8 10 7 1 . . . 4 1 . . . . . 1 . . . . . . . Botnet 11 | . 2 . 2 3 2 1 . . . . 1 . . . . . . . . . . . . . Disrupt 1 | . . . . . . . . . . . . . . . . . 1 . . . . . . . Operators 1 | . . . 1 . . . . . . . . . . . . . . . . . . . . . Skim 21 | . 4 . 5 7 5 . . . . . . . . . . . . . . . . . . . Sabotage 4 | . . . . . . . . . . 4 . . . . . . . . . . . . . . Fabricators 3 | . . . . . . . . . . . . . . . . . 2 1 . . . . . . Prioritize 1 | . . . . . . . . . . . . . . . . . . 1 . . . . . . Recompile 2 | . . . . . . . . . . . . . . . . . 2 . . . . . . . Repair Stations . | . . . . . . . . . . . . . . . . . . . . . . . . . Recycling Units 7 | . . . . . 6 . . . . . 1 . . . . . . . . . . . . . Mask 1 | . . . . . . . . . . . 1 . . . . . . . . . . . . . Tunnel 6 | . . . . . 6 . . . . . . . . . . . . . . . . . . . Scanalyzers . | . . . . . . . . . . . . . . . . . . . . . . . . . Garrison Access 2 | . . . . 1 . . . . . . . 1 . . . . . . . . . . . . Jam 2 | . . . . 1 . . . . . . . 1 . . . . . . . . . . . . Data Cores Recovered 4 | . . . 1 . . . . . . . . . . . . . 1 . . . 1 1 . . Used . | . . . . . . . . . . . . . . . . . . . . . . . . . Hacking Detections 86 | . 5 . 7 10 5 5 8 . . . 8 7 . . . . 8 6 . 3 7 . 5 2 Full Trace Events 9 | . . . . 1 . . 1 . . . 2 1 . . . . . 2 . 1 . . 1 . Feedback Events . | . . . . . . . . . . . . . . . . . . . . . . . . . Feedback Blocked . | . . . . . . . . . . . . . . . . . . . . . . . . . Robot Schematics Acquired . | . . . . . . . . . . . . . . . . . . . . . . . . . Robots Built . | . . . . . . . . . . . . . . . . . . . . . . . . . Authchips . | . . . . . . . . . . . . . . . . . . . . . . . . . Time . | . . . . . . . . . . . . . . . . . . . . . . . . . Total Robot Build Rating . | . . . . . . . . . . . . . . . . . . . . . . . . . Part Schematics Acquired 6 | . . . . . . . . . . . . . . . 4 . . 1 . . . 1 . . Parts Built 8 | . . . . . . . . . . . . . . . . . . 6 . 2 . . . . Authchips 2 | . . . . . . . . . . . . . . . . . . 2 . . . . . . Time 126 | . . . . . . . . . . . . . . . . . . 90 . 36 . . . . Total Part Build Rating 24 | . . . . . . . . . . . . . . . . . . 18 . 6 . . . . Part Studies Acquired 2 | . . . . . . . . . . . . 1 . . . . 1 . . . . . . . Parts Repaired 3 | . . . . 1 . . . . . . . . . . . . 2 . . . . . . . Time 132 | . . . . 50 . . . . . . . . . . . . 82 . . . . . . . Parts Recycled . | . . . . . . . . . . . . . . . . . . . . . . . . . Recycled Matter . | . . . . . . . . . . . . . . . . . . . . . . . . . Retrieved Matter . | . . . . . . . . . . . . . . . . . . . . . . . . . Retrieved Components 19 | . . . . . . . 3 . . . 11 . . . . . . 2 . 3 . . . . Parts Scanalyzed . | . . . . . . . . . . . . . . . . . . . . . . . . . Part Schematics Acquired . | . . . . . . . . . . . . . . . . . . . . . . . . . Parts Damaged . | . . . . . . . . . . . . . . . . . . . . . . . . . Bothacking | -11 -10 -10 -8 -8 -8 -6 -6 -6 -6 -6 -5 -4 -4 -4 -4 -3 -3 -3 -3 -2 -2 -2 -1 -1 ------------ Run | Yrd Mat Sub Mat Sto Rec Fac Ext Cet Arc Hub Fac Fac Upp Upp Zhi Pro Res Arm Lab Res Qua Frg Acc Com Used RIF Installer . | . . . . . . . . . . . . . . . . . . . . . . . . . Robots Hacked 3 | . . . . . . 1 1 . . . 1 . . . . . . . . . . . . . Non-combat 2 | . . . . . . 1 1 . . . . . . . . . . . . . . . . . Combat 1 | . . . . . . . . . . . 1 . . . . . . . . . . . . . Robot Hacks Applied 3 | . . . . . . 1 1 . . . 1 . . . . . . . . . . . . . parse_system 1 | . . . . . . . . . . . 1 . . . . . . . . . . . . . find_recycling 1 | . . . . . . . 1 . . . . . . . . . . . . . . . . . find_station 1 | . . . . . . 1 . . . . . . . . . . . . . . . . . . Relay Couplers Released 8 | . . . . . . . . . . 2 . 3 . . . . . . . . . 3 . . Machine Destruction 5 | . . . . . . . . . . 2 . . . . . . . . . . . 3 . . Programmers 3 | . . . . . . . . . . . . 3 . . . . . . . . . . . . Fabnet Peak Effective % . | . . . . . . . . . . . . . . . . . . . . . . . . . Robots Rewired 26 | . . . . . 6 . 17 . . . 1 . 2 . . . . . . . . . . . Allies Hacked . | . . . . . . . . . . . . . . . . . . . . . . . . . Hacks Repelled . | . . . . . . . . . . . . . . . . . . . . . . . . . Allies | -11 -10 -10 -8 -8 -8 -6 -6 -6 -6 -6 -5 -4 -4 -4 -4 -3 -3 -3 -3 -2 -2 -2 -1 -1 -------- Run | Yrd Mat Sub Mat Sto Rec Fac Ext Cet Arc Hub Fac Fac Upp Upp Zhi Pro Res Arm Lab Res Qua Frg Acc Com Total Allies 52 | . . . . 10 6 . 28 5 . . 1 . 2 . . . . . . . . . . . Largest Group 27 | . . . . 10 6 6 27 27 16 15 1 . 2 . . . . . . . . . . . Highest-Rated Group 1120 | . . . . 173 127 127 853 1120 725 686 30 . 96 . . . . . . . . . . . Highest-Rated Ally 159 | . . . . 29 34 34 159 152 96 96 30 . 49 . . . . . . . . . . . Total Orders 26 | . . . . 2 2 2 5 4 2 5 . . 4 . . . . . . . . . . . STAY 14 | . . . . 1 1 1 2 3 1 3 . . 2 . . . . . . . . . . . FOLLOW 12 | . . . . 1 1 1 3 1 1 2 . . 2 . . . . . . . . . . . Ally Attacks 387 | . . . . 75 . 11 125 77 35 60 1 . 3 . . . . . . . . . . . Total Damage 8285 | . . . . 890 . 498 2666 1374 844 1820 37 . 156 . . . . . . . . . . . Kills 53 | . . . . 12 . 2 14 12 3 9 . . 1 . . . . . . . . . . . Allies Corrupted 4 | . . . . . . . . . . 3 1 . . . . . . . . . . . . . Allies Melted 6 | . . . . . . . . . . . . . . . . . . . . . . . . 6 Intel | -11 -10 -10 -8 -8 -8 -6 -6 -6 -6 -6 -5 -4 -4 -4 -4 -3 -3 -3 -3 -2 -2 -2 -1 -1 ------- Run | Yrd Mat Sub Mat Sto Rec Fac Ext Cet Arc Hub Fac Fac Upp Upp Zhi Pro Res Arm Lab Res Qua Frg Acc Com Active Infowar (turns) 13598 | 6 261 . . . . 736 245 . . . 1396 1047 793 417 4 362 749 846 95 890 985 293 4142 331 Sensors 4573 | . . . . . . . . . . . . . . . . . . . . . 508 255 3810 . Terrain 2005 | . . . . . . . . . . . . . . . . . 560 379 . . 773 293 . . Seismic 6739 | 6 261 . . . . 736 245 . . . 1296 297 646 417 4 362 746 819 95 762 47 . . . Cloaking 851 | . . . . . . . . . . . . . . . . . . 1 . . . . 519 331 Jamming 2243 | . . . . . . . . . . . 100 1045 436 . . . 4 27 . 352 . 279 . . Robot Analysis Total 6 | . 1 . 1 . . . . . . . . . . . 4 . . . . . . . . . Derelict Logs Recovered 4 | . . 1 . . . . . . . . . . 3 . . . . . . . . . . . Drone Launches . | . . . . . . . . . . . . . . . . . . . . . . . . . Drone Recoveries . | . . . . . . . . . . . . . . . . . . . . . . . . . Exploration | -11 -10 -10 -8 -8 -8 -6 -6 -6 -6 -6 -5 -4 -4 -4 -4 -3 -3 -3 -3 -2 -2 -2 -1 -1 ------------- Run | Yrd Mat Sub Mat Sto Rec Fac Ext Cet Arc Hub Fac Fac Upp Upp Zhi Pro Res Arm Lab Res Qua Frg Acc Com Turns Passed 35463 | 75 732 691 2536 1652 6944 781 1662 892 843 531 2234 1142 855 456 229 480 849 1367 1101 948 1134 2033 4142 1154 Spaces Moved 17474 | 39 410 368 765 587 2148 525 763 292 326 318 1175 544 711 514 171 578 904 948 238 876 884 1701 1026 663 Core . | . . . . . . . . . . . . . . . . . . . . . . . . . Treads 9636 | 2 410 213 . 22 310 173 763 292 326 318 1175 500 681 514 171 578 904 919 . 39 106 1220 . . Legs 3788 | 37 . 155 765 565 775 . . . . . . . . . . . . 3 . 463 778 247 . . Wheels 1345 | . . . . . 993 352 . . . . . . . . . . . . . . . . . . Hover 2705 | . . . . . 70 . . . . . . 44 30 . . . . 26 238 374 . 234 1026 663 Flight . | . . . . . . . . . . . . . . . . . . . . . . . . . Fastest Speed 58 | 120 160 130 130 200 131 131 131 131 131 131 131 124 99 69 69 69 69 69 86 86 58 58 81 81 Average Speed 125 | 122 160 147 182 239 222 131 154 148 131 131 149 171 100 74 69 69 69 73 86 89 88 70 81 81 Slowest Speed 640 | 160 160 240 200 640 320 161 161 161 131 131 232 199 124 99 69 69 99 99 86 116 93 119 81 81 Overloaded Moves . | . . . . . . . . . . . . . . . . . . . . . . . . . Propulsion Burnouts . | . . . . . . . . . . . . . . . . . . . . . . . . . Robots Hopped . | . . . . . . . . . . . . . . . . . . . . . . . . . Potential Cave-ins 21 | . . . . . 2 . . . . . 11 . . . . . . . . . . 6 . 2 Cave-ins Triggered 2 | . . . . . . . . . . . 2 . . . . . . . . . . . . . Teleports 11 | . . . . . . . . . . . . . . . . . . 1 . . . 9 1 . Exploration Rate (%) 52 | 3 52 22 69 92 97 15 84 57 95 40 38 19 82 67 62 72 32 45 81 15 86 40 32 22 Regions Visited 24 Branch Regions 16 Pre-discovered Areas 17 | . . . 3 2 9 . . . . . . . . . 3 . . . . . . . . . Known Exits Taken 10 | . . . 1 1 . 1 . . . . . 1 . . . 1 1 . . 1 1 1 1 . Unknown Exits Taken 14 | 1 1 1 . . 1 . 1 1 1 1 1 . 1 1 1 . . 1 1 . . . . . Scrap Searched 11 | . . . . . . . . . . . . . 3 3 . 5 . . . . . . . . Spaces Dug 348 | . 2 . 20 . 2 8 1 . 1 23 70 10 3 21 2 1 8 14 23 2 51 36 16 34 Terrain Destroyed 1436 | . 2 . 145 18 27 70 102 . 16 27 379 34 19 29 11 5 20 71 41 35 169 72 55 89 Melee 16 | . 1 . 1 . . . . . . . . . . . . . 7 6 . . . . 1 . Projectile 689 | . 1 . 23 . 25 15 5 . 16 27 174 14 17 9 11 5 13 48 41 19 43 52 42 89 AOE 731 | . . . 121 18 2 55 97 . . . 205 20 2 20 . . . 17 . 16 126 20 12 . Terrain Rammed . | . . . . . . . . . . . . . . . . . . . . . . . . . Walls Destroyed . | . . . . . . . . . . . . . . . . . . . . . . . . . Machines Disabled . | . . . . . . . . . . . . . . . . . . . . . . . . . Actions | -11 -10 -10 -8 -8 -8 -6 -6 -6 -6 -6 -5 -4 -4 -4 -4 -3 -3 -3 -3 -2 -2 -2 -1 -1 --------- Run | Yrd Mat Sub Mat Sto Rec Fac Ext Cet Arc Hub Fac Fac Upp Upp Zhi Pro Res Arm Lab Res Qua Frg Acc Com Total 29287 | 52 462 473 1748 763 4154 590 1166 726 706 411 1483 678 809 560 256 638 1060 1468 1052 993 1151 2327 4310 1251 Wait 8788 | . 17 72 804 66 1755 29 245 379 313 64 80 25 25 6 23 28 48 248 601 39 137 211 3184 389 Move 17448 | 38 409 367 764 586 2147 524 762 291 325 317 1172 543 710 513 170 577 903 947 237 875 883 1700 1025 663 Hop . | . . . . . . . . . . . . . . . . . . . . . . . . . Pick Up 300 | 2 11 1 27 4 13 2 14 7 9 2 18 10 5 3 9 3 18 37 15 6 10 52 10 12 Fast Attach 158 | 1 2 2 15 12 1 3 2 6 5 . 7 5 1 1 8 2 4 18 6 3 9 32 6 7 Attach 101 | . . 1 7 . 4 2 1 1 1 . 4 4 2 3 1 . 5 10 6 1 3 37 5 3 Detach 37 | . . 2 2 . 1 . 1 . . . 1 2 1 1 . . . 2 2 . . 19 1 2 Swap 216 | 2 5 1 11 17 1 . 4 2 1 4 28 9 10 3 3 7 9 28 1 14 15 18 16 7 Drop 369 | 2 4 4 29 18 23 4 14 14 13 2 18 9 5 2 15 5 15 44 20 8 17 52 14 18 Fire 1605 | 7 7 17 81 48 124 25 82 26 39 21 144 68 42 28 26 16 37 113 164 47 77 174 46 146 Melee 108 | . 3 6 5 . . 1 28 . . . . . . . . . 21 21 . . . 20 3 . Ram . | . . . . . . . . . . . . . . . . . . . . . . . . . Kick 5 | . . . 3 2 . . . . . . . . . . . . . . . . . . . . Crush 12 | . 4 . . . . . 1 . . 1 5 1 . . . . . . . . . . . . Escape Stasis 30 | . . . . 10 . . 4 . . . 2 2 . . . . . . . . . 12 . . Rewire 109 | . . . . . 85 . 8 . . . 4 . 8 . . . . . . . . . . 4 Trap . | . . . . . . . . . . . . . . . . . . . . . . . . . Miscellaneous 1 | . . . . . . . . . . . . . . . 1 . . . . . . . . . Route ------- -11/Scrapyard -10/Materials (discovered 3 exits: [*Mat] / [*Min] / [*Sub]) -10/Subcaves (discovered 2 exits: *Mat / Rec) -8/Materials (discovered 4 exits: [*Fac x3] / *Sto) -8/Storage (discovered 2 exits: [*Fac] / *Rec) -8/Recycling -6/Factory (discovered 3 exits: Low / *Ext x2) -6/Extension (discovered 2 exits: *Fac / *Cet) -6/Cetus (discovered 2 exits: *Fac / [*Arc]) -6/Archives (discovered 3 exits: *Fac / *Hub x2) -6/Hub_04(d) (discovered 3 exits: *Fac x3) -5/Factory -4/Factory (discovered 2 exits: *Upp x2) -4/Upper Caves -4/Upper Caves (discovered 2 exits: *Res / *Zhi) -4/Zhirov -3/Proximity Caves -3/Research (discovered 3 exits: *Arm / Tes x2) -3/Armory -3/Lab -2/Research -2/Quarantine (discovered 3 exits: *Acc / [*Sec] / *Frg) -2/Protoforge -1/Access -1/Command (discovered 2 exits: *Sur x2) By MAIN.C's Side History --------- Turn | Location | Event 14 | -11/Scrapyard | Discovered new exit (range 3) 76 | -11/Scrapyard | Entered Materials 80 | -10/Materials | Central database locked down 185 | -10/Materials | Discovered new exit (range 6) 318 | -10/Materials | Build established: Mutant 441 | -10/Materials | Discovered new exit (range 8) 795 | -10/Materials | Discovered new exit (range 9) 808 | -10/Materials | Entered Subcaves 809 | -10/Subcaves | Approached by a straggling Scientist 815 | -10/Subcaves | Identified exit to Recycling 924 | -10/Subcaves | A swath of the cavern ceiling suddenly collapsed 1238 | -10/Subcaves | Visited 4L-MR0's lab 1266 | -10/Subcaves | Found Prototype Leg 1297 | -10/Subcaves | Identified Cargo Legs 1298 | -10/Subcaves | Attached Cargo Legs, gained temporary slots: Utility x2 1459 | -10/Subcaves | Discovered new exit (range 15) 1499 | -10/Subcaves | Entered Materials 1499 | -8/Materials | Evolved 4 slots: Propulsion x2, Utility x1, Weapon x1 1520 | -8/Materials | Found Prototype Launcher 1520 | -8/Materials | Identified Rocket Array 1726 | -8/Materials | Identified exit to Storage 1815 | -8/Materials | Build established: Tank 1834 | -8/Materials | Discovered new exit (range 9) 2299 | -8/Materials | Discovered new exit (range 8) 2904 | -8/Materials | Discovered new exit (range 15) 3096 | -8/Materials | Learned location of Zion (-7) 3145 | -8/Materials | Learned 4 Factory zone layouts 3186 | -8/Materials | Learned Storage stockpile data 4035 | -8/Materials | Entered Storage 4154 | -8/Storage | Assisted by bots powering up and referring to "LRC-V3" 4376 | -8/Storage | Garrison activated, responded to threat 4436 | -8/Storage | Lost 3 allies 4438 | -8/Storage | Build established: Commander-Tank 4665 | -8/Storage | Lost 4 allies 4734 | -8/Storage | Discovered new exit (range 13) 4942 | -8/Storage | Build established: Gunner 5406 | -8/Storage | Learned Recycling recycling unit intel 5425 | -8/Storage | Learned Factory trap positions 5436 | -8/Storage | Learned location of Recycling (-8) 5437 | -8/Storage | Learned Factory fabricator intel 5573 | -8/Storage | Repaired Drone Bay 5635 | -8/Storage | First assault squad dispatched 5674 | -8/Storage | Used back door to open Recycling access 5687 | -8/Storage | Entered Recycling 5688 | -8/Recycling | Loaded intel: 6 recycling unit locations 7355 | -8/Recycling | Build established: Tank 7678 | -8/Recycling | Build established: Commander-Tank 7917 | -8/Recycling | Discovered new exit (range 15) 8000 | -8/Recycling | Learned 8 Factory zone layouts 8052 | -8/Recycling | Learned 2 Lower Caves zone layouts 8079 | -8/Recycling | Learned Storage emergency access door positions 8105 | -8/Recycling | Learned 4 Factory zone layouts 8142 | -8/Recycling | Learned location of 1 exit from Storage 8249 | -8/Recycling | Entered Scraplab 8263 | -8/Recycling | Found Prototype Device 8263 | -8/Recycling | Identified Scrap Engine 8558 | -8/Recycling | Build established: Commander-Gunner 9507 | -8/Recycling | Build established: Commander-Construct 12631 | -8/Recycling | Entered Factory 12631 | -6/Factory | Accompanied by 6 allies 12631 | -6/Factory | Evolved 4 slots: Power x1, Utility x2, Weapon x1 12632 | -6/Factory | Identified exit to Lower Caves 12633 | -6/Factory | Identified exit to Extension 12634 | -6/Factory | Loaded intel: 118 trap records 12635 | -6/Factory | Loaded intel: 6 fabricator locations 13280 | -6/Factory | Murdered 3 allies 13412 | -6/Factory | Entered Extension 13540 | -6/Extension | Build established: Construct 13807 | -6/Extension | Rescued a captive Derelict 13808 | -6/Extension | Rescued a captive Derelict 13830 | -6/Extension | Rescued A7 13866 | -6/Extension | Rescued a captive Derelict 13953 | -6/Extension | Rescued a captive Derelict 13954 | -6/Extension | Rescued a captive Derelict 13977 | -6/Extension | Rescued a captive Derelict 14083 | -6/Extension | Build established: Commander-Construct 14369 | -6/Extension | Spotted B-75 Beast 14383 | -6/Extension | Destroyed B-75 Beast 14396 | -6/Extension | Spotted B-75 Beast 14421 | -6/Extension | Allies destroyed B-75 Beast 14576 | -6/Extension | Rescued a captive Derelict 14577 | -6/Extension | Rescued a captive Derelict 14612 | -6/Extension | Rescued a captive Derelict 14615 | -6/Extension | Rescued a captive Derelict 14811 | -6/Extension | Discovered new exit (range 10) 14812 | -6/Extension | First assault squad dispatched 14862 | -6/Extension | Discovered new exit (range 6) 15074 | -6/Extension | Entered Cetus 15074 | -6/Cetus | Accompanied by 27 allies (A7) 15079 | -6/Cetus | Acquired a Cetus Manufacturing Module code from A7 15115 | -6/Cetus | Spotted Cetus Guard 15116 | -6/Cetus | Spotted Cetus Guard 15120 | -6/Cetus | Spotted Cetus Guard 15123 | -6/Cetus | Spotted Cetus Guard 15129 | -6/Cetus | Destroyed Cetus Guard 15140 | -6/Cetus | Destroyed Cetus Guard 15145 | -6/Cetus | Allies destroyed Cetus Guard 15150 | -6/Cetus | Allies destroyed Cetus Guard 15175 | -6/Cetus | Lost 7 allies 15227 | -6/Cetus | Started Cetus Manufacturing Module 15246 | -6/Cetus | Discovered new exit (range 16) 15252 | -6/Cetus | Manufactured an Enhanced Grunt 15277 | -6/Cetus | Manufactured an Enhanced Grunt 15302 | -6/Cetus | Manufactured an Enhanced Grunt 15327 | -6/Cetus | Manufactured an Enhanced Grunt 15352 | -6/Cetus | Manufactured an Enhanced Grunt 15455 | -6/Cetus | Spotted Cetus Guard 15455 | -6/Cetus | Spotted Cetus Guard 15460 | -6/Cetus | Spotted Cetus Guard 15462 | -6/Cetus | Spotted Cetus Guard 15470 | -6/Cetus | Destroyed Cetus Guard 15481 | -6/Cetus | Allies destroyed Cetus Guard 15485 | -6/Cetus | Destroyed Cetus Guard 15487 | -6/Cetus | Discovered new exit (range 16) 15490 | -6/Cetus | Allies destroyed Cetus Guard 15501 | -6/Cetus | Met Revision 17 15521 | -6/Cetus | Lost 6 allies 15524 | -6/Cetus | System corruption reached 10% 15824 | -6/Cetus | Security sweep announced 15890 | -6/Cetus | Murdered A7 15894 | -6/Cetus | Extracted ID and sensor layout for unrecognized location from A7's data core 15966 | -6/Cetus | Entered Archives 15966 | -6/Archives | Accompanied by 16 allies 16056 | -6/Archives | Discovered new exit (range 15) 16127 | -6/Archives | Discovered new exit (range 16) 16142 | -6/Archives | Discovered new exit (range 15) 16809 | -6/Archives | Entered Hub_04(d) 16809 | -6/Hub_04(d) | Accompanied by 15 allies 16809 | -6/Hub_04(d) | Discovered new exit (range 7) 17012 | -6/Hub_04(d) | Discovered new exit (range 2) 17027 | -6/Hub_04(d) | Lost 4 allies 17145 | -6/Hub_04(d) | Discovered new exit (range 16) 17275 | -6/Hub_04(d) | Network Hub disabled 17291 | -6/Hub_04(d) | Spotted Lightning 17294 | -6/Hub_04(d) | Spotted Lightning 17294 | -6/Hub_04(d) | Spotted Lightning 17294 | -6/Hub_04(d) | Spotted B-75 Beast 17308 | -6/Hub_04(d) | Spotted Lightning 17340 | -6/Hub_04(d) | Entered Factory 17340 | -5/Factory | Evolved 2 slots: Utility x1, Weapon x1 17348 | -5/Factory | Lost 6 allies 17618 | -5/Factory | Build established: Construct 18309 | -5/Factory | Build established: Scavenger-Construct 18637 | -5/Factory | Crushed by falling debris 18928 | -5/Factory | Build established: Construct 19097 | -5/Factory | Crushed by falling debris 19140 | -5/Factory | First assault squad dispatched 19214 | -5/Factory | Discovered new exit (range 10) 19255 | -5/Factory | Destroyed 7 combat bots 19574 | -5/Factory | Entered another Factory area 19574 | -4/Factory | Evolved 2 slots: Utility x2 19675 | -4/Factory | Build established: Hacker-Construct 19815 | -4/Factory | Identified exit to Upper Caves 20099 | -4/Factory | Garrison activated, responded to threat 20190 | -4/Factory | Central database locked down 20574 | -4/Factory | First assault squad dispatched 20716 | -4/Factory | Entered Upper Caves 20737 | -4/Upper Caves | Learned Research stockpile data 20743 | -4/Upper Caves | Attracted the attention of an 0b10 outpost 21017 | -4/Upper Caves | Spotted B-86 Titan 21065 | -4/Upper Caves | Learned Research terminal intel 21343 | -4/Upper Caves | Learned location of 1 exit from Proximity Caves 21441 | -4/Upper Caves | Discovered new exit (range 16) 21571 | -4/Upper Caves | Entered another Upper Caves area 21574 | -4/Upper Caves | Discovered new exit (range 6) 21628 | -4/Upper Caves | Destroyed 7 combat bots 21628 | -4/Upper Caves | Found DCF Scrap (11 items) 21913 | -4/Upper Caves | Discovered new exit (range 6) 22005 | -4/Upper Caves | Ambushed by wild Derelicts 22015 | -4/Upper Caves | Spotted B-86 Titan 22027 | -4/Upper Caves | Entered Zhirov 22027 | -4/Zhirov | Discovered new exit (range 3) 22042 | -4/Zhirov | Met Zhirov 22058 | -4/Zhirov | Learned location of Testing (-3) 22058 | -4/Zhirov | Learned location of Quarantine (-2) 22104 | -4/Zhirov | Found Alien Artifact 22104 | -4/Zhirov | Identified Integrated Reactor 22104 | -4/Zhirov | Installed Integrated Reactor, increased core energy generation (+10) 22117 | -4/Zhirov | Found Alien Artifact 22217 | -4/Zhirov | Zhirov requested help retrieving the SGEMP Prototype 22245 | -4/Zhirov | Cloak Generator disabled 22245 | -4/Zhirov | Attacked by Zhirov 22255 | -4/Zhirov | Enhanced Grunts warped into view 22256 | -4/Zhirov | Entered Proximity Caves 22257 | -3/Proximity Caves | Identified exit to Research 22351 | -3/Proximity Caves | Found DCF Scrap (11 items) 22736 | -3/Proximity Caves | Entered Research 22736 | -3/Research | Evolved 2 slots: Utility x2 22738 | -3/Research | Loaded intel: 21 terminal locations 22883 | -3/Research | Identified exit to Armory 22883 | -3/Research | Identified exit to Testing 22883 | -3/Research | Watched by a mysterious "MATRIX" hacker. 22932 | -3/Research | Repaired Broken Adv. Cooling System 22936 | -3/Research | Revision forces began assault on 0b10 22964 | -3/Research | Met up with Revision 17++ 23249 | -3/Research | Lost 3 allies 23277 | -3/Research | Central database locked down 23279 | -3/Research | Repaired Adv. Cooling System? 23410 | -3/Research | Spotted B-86 Titan 23436 | -3/Research | Research terminal network offline 23585 | -3/Research | Entered Armory 23858 | -3/Armory | Fabricated Flak Cannon? 23952 | -3/Armory | Fabricated Flak Cannon (x2) 23993 | -3/Armory | Fabricated Flak Cannon (x2) 24391 | -3/Armory | System corruption reached 10% 24422 | -3/Armory | Destroyed 7 combat bots 24431 | -3/Armory | Lost 3 parts (1p2u) 24591 | -3/Armory | Found Gamma Bomb Array 24652 | -3/Armory | Found Unknown Launcher 24652 | -3/Armory | Identified Fusion Bomb Launcher 24712 | -3/Armory | Build established: Construct 24913 | -3/Armory | Identified Transdimensional Reconstructor 24913 | -3/Armory | Warped through subspace to slip node 24913 | -3/Armory | Discovered new exit (range 1) 24952 | -3/Armory | Entered Lab 24952 | -3/Lab | Discovered new exit (range 9) 24974 | -3/Lab | Hidden lab's door opened automatically 24974 | -3/Lab | Sensor layout match revealed 24975 | -3/Lab | Gained access to the hidden lab's interior 25180 | -3/Lab | Found Alien Artifact 25180 | -3/Lab | Identified Integrated Mediator 25180 | -3/Lab | Installed Integrated Mediator, increased core attachment efficiency 25186 | -3/Lab | Found Alien Artifact 25186 | -3/Lab | Identified Core Expander 25186 | -3/Lab | Installed Core Expander, added new Power slot 25200 | -3/Lab | Found Transdimensional Reconstructor 25492 | -3/Lab | Build established: Tank 25587 | -3/Lab | Found Prototype Energy Cannon 25589 | -3/Lab | Found Prototype Energy Cannon 25592 | -3/Lab | Found Prototype Device 25595 | -3/Lab | Found Prototype Hackware 25626 | -3/Lab | Identified AEGIS Remote Shield 25948 | -3/Lab | Identified Quantum Router 26053 | -3/Lab | Entered Research 26053 | -2/Research | Evolved 2 slots: Propulsion x1, Utility x1 26113 | -2/Research | Discovered new exit (range 16) 26171 | -2/Research | Fabricated Flak Cannon? 26274 | -2/Research | Found Quantum Capacitor 26378 | -2/Research | Identified exit to Quarantine 26920 | -2/Research | Found Prototype Processor 26920 | -2/Research | Identified Exp. Signal Interpreter 27001 | -2/Research | Entered Quarantine 27122 | -2/Quarantine | Discovered new exit (range 16) 27198 | -2/Quarantine | Identified exit to Access 27276 | -2/Quarantine | Found Prototype Protection 27276 | -2/Quarantine | Identified Centrium Heavy Armor Plating 27345 | -2/Quarantine | Found Alien Reactor 27365 | -2/Quarantine | Found Prototype Processor 27365 | -2/Quarantine | Identified Exp. Targeting Computer 27481 | -2/Quarantine | Found Prototype Processor 27481 | -2/Quarantine | Identified Exp. Melee Analysis Suite 27623 | -2/Quarantine | Build established: Construct 27668 | -2/Quarantine | Cryocooling Duct disabled 27683 | -2/Quarantine | Ambient heat levels rising (+20) 27683 | -2/Quarantine | Non-combat units ordered to evacuate 27764 | -2/Quarantine | Found Alien Energy Cannon 27813 | -2/Quarantine | Found Alien Artifact 27880 | -2/Quarantine | System corruption reached 10% 28029 | -2/Quarantine | Found Alien Artifact 28092 | -2/Quarantine | Spotted Fortress 28132 | -2/Quarantine | Discovered new exit (range 5) 28132 | -2/Quarantine | Discovered new exit (range 6) 28134 | -2/Quarantine | Identified exit to Protoforge 28135 | -2/Quarantine | Entered Protoforge 28189 | -2/Protoforge | Spotted Hotshot 28197 | -2/Protoforge | Superfortress began startup sequence 28202 | -2/Protoforge | Spotted Hotshot 28204 | -2/Protoforge | Spotted Hotshot 28204 | -2/Protoforge | Spotted Hotshot 28206 | -2/Protoforge | Destroyed Hotshot 28210 | -2/Protoforge | Destroyed Hotshot 28211 | -2/Protoforge | Spotted Hotshot 28212 | -2/Protoforge | Spotted Hotshot 28212 | -2/Protoforge | Destroyed Hotshot 28213 | -2/Protoforge | Spotted Hotshot 28215 | -2/Protoforge | Spotted Hotshot 28217 | -2/Protoforge | Spotted Hotshot 28232 | -2/Protoforge | Destroyed Hotshot 28234 | -2/Protoforge | Destroyed Hotshot 28234 | -2/Protoforge | Destroyed Hotshot 28236 | -2/Protoforge | Destroyed Hotshot 28238 | -2/Protoforge | Destroyed Hotshot 28270 | -2/Protoforge | Destroyed Hotshot 28291 | -2/Protoforge | Destroyed 12 combat bots 28293 | -2/Protoforge | Discovered exit to Access (range 12) 28303 | -2/Protoforge | Identified Dimensional Node Initializer 28303 | -2/Protoforge | Initialized slip node 28400 | -2/Protoforge | Found Prototype Storage 28400 | -2/Protoforge | Identified Cep. NT7 Matterbank 28407 | -2/Protoforge | Found Prototype Device 28407 | -2/Protoforge | Identified Exp. Trap Extractor 28413 | -2/Protoforge | Found Prototype Device 28413 | -2/Protoforge | Identified Exp. System Purifier 28420 | -2/Protoforge | Found Exp. System Purifier 28596 | -2/Protoforge | Found Prototype Device 28649 | -2/Protoforge | Spotted Immortal 28650 | -2/Protoforge | Spotted Decapitator 28650 | -2/Protoforge | Spotted Decapitator 28650 | -2/Protoforge | Spotted Decapitator 28650 | -2/Protoforge | Spotted Decapitator 28655 | -2/Protoforge | Spotted Decapitator 28657 | -2/Protoforge | Destroyed Decapitator 28660 | -2/Protoforge | Destroyed Decapitator 28664 | -2/Protoforge | Destroyed Decapitator 28670 | -2/Protoforge | Destroyed Decapitator 28681 | -2/Protoforge | Spotted Decapitator 28681 | -2/Protoforge | Spotted Decapitator 28682 | -2/Protoforge | Spotted Decapitator 28685 | -2/Protoforge | Destroyed Decapitator 28685 | -2/Protoforge | Destroyed Decapitator 28687 | -2/Protoforge | Destroyed Decapitator 28718 | -2/Protoforge | Build established: Tank 28728 | -2/Protoforge | Identified Potential Cannon 28729 | -2/Protoforge | Destroyed 9 combat bots 28752 | -2/Protoforge | Found Faulty Cep. Zero-point Core 28756 | -2/Protoforge | Found Cep. Zero-point Core 28800 | -2/Protoforge | Identified Crosscalibrator 28879 | -2/Protoforge | Destroyed Immortal 28885 | -2/Protoforge | First assault squad dispatched 29027 | -2/Protoforge | Spotted Decapitator 29042 | -2/Protoforge | Destroyed Decapitator 29056 | -2/Protoforge | Found Prototype Device 29056 | -2/Protoforge | Identified Cep. Weapon Articulator 29059 | -2/Protoforge | Found Mni. Quantum Capacitor 29062 | -2/Protoforge | Found Prototype Device 29062 | -2/Protoforge | Identified Exp. Force Booster 29065 | -2/Protoforge | Found Prototype Device 29065 | -2/Protoforge | Identified Cep. Networked Targeting System 29069 | -2/Protoforge | Found Exp. Kinecellerator 29081 | -2/Protoforge | Found Faulty Cep. Networked Targeting System 29084 | -2/Protoforge | Found Faulty Cep. Networked Targeting System 29218 | -2/Protoforge | Spotted Decapitator 29218 | -2/Protoforge | Spotted Decapitator 29218 | -2/Protoforge | Spotted Decapitator 29218 | -2/Protoforge | Spotted Decapitator 29225 | -2/Protoforge | Destroyed Decapitator 29229 | -2/Protoforge | Destroyed Decapitator 29229 | -2/Protoforge | Destroyed Decapitator 29229 | -2/Protoforge | Destroyed Decapitator 29279 | -2/Protoforge | Found Cep. Rapid Grenade Launcher 29282 | -2/Protoforge | Found Faulty Cep. Rapid Grenade Launcher 29327 | -2/Protoforge | Spotted V130-r 29337 | -2/Protoforge | Build established: Gunner 29340 | -2/Protoforge | Found Cep. Chromion Battery 29342 | -2/Protoforge | Found Prototype Device 29343 | -2/Protoforge | Identified Cep. Matter Streamer 29353 | -2/Protoforge | Found Prototype Storage 29353 | -2/Protoforge | Identified Cep. Antigrav Storage Unit 29365 | -2/Protoforge | Spotted V742-t 29389 | -2/Protoforge | Spotted V100-z 29416 | -2/Protoforge | Destroyed V130-r 29419 | -2/Protoforge | Identified Core Cannon 29432 | -2/Protoforge | Destroyed V742-t 29439 | -2/Protoforge | Destroyed V100-z 29458 | -2/Protoforge | Spotted Hotshot 29460 | -2/Protoforge | Destroyed Hotshot 29462 | -2/Protoforge | Spotted Hotshot 29464 | -2/Protoforge | Spotted Hotshot 29467 | -2/Protoforge | Lost 8 parts (1p1n3u3w) 29467 | -2/Protoforge | Spotted Hotshot 29481 | -2/Protoforge | Destroyed Hotshot 29484 | -2/Protoforge | Destroyed Hotshot 29485 | -2/Protoforge | Destroyed Hotshot 29535 | -2/Protoforge | Core integrity fell below 50% 29562 | -2/Protoforge | Spotted Immortal 29562 | -2/Protoforge | Spotted Immortal 29568 | -2/Protoforge | Destroyed Immortal 29576 | -2/Protoforge | Destroyed Immortal 29589 | -2/Protoforge | Spotted V994-d 29591 | -2/Protoforge | Found Cep. Deflector Sword 29593 | -2/Protoforge | Found Prototype Slashing Weapon 29593 | -2/Protoforge | Identified Exp. Terror Saw 29616 | -2/Protoforge | Destroyed V994-d 29617 | -2/Protoforge | Found Prototype Energy Cannon 29618 | -2/Protoforge | Found Prototype Energy Cannon 29619 | -2/Protoforge | Identified Cep. Plasma Driver (x2) 29624 | -2/Protoforge | Found Faulty Cep. Heavy Railcannon 29628 | -2/Protoforge | Found Corrupted Cep. Miniperforator 29638 | -2/Protoforge | Found Faulty Cep. Helical Railcannon 29641 | -2/Protoforge | Found Faulty Cep. Heavy Railcannon 29782 | -2/Protoforge | Additional patrols dispatched to research labs 29800 | -2/Protoforge | Found Transdimensional Reconstructor 29810 | -2/Protoforge | Found Cep. Navigation Harness 29887 | -2/Protoforge | Build established: Tank 29919 | -2/Protoforge | Spotted AP7-3 29973 | -2/Protoforge | Spotted V105-w 29973 | -2/Protoforge | Spotted V122-b 30089 | -2/Protoforge | Found Cep. Thermoelectric Network 30092 | -2/Protoforge | Found Cep. Cloak Mesh 30094 | -2/Protoforge | Found Faulty Cep. Thermoelectric Network 30096 | -2/Protoforge | Found Cep. Core Analysis Suite 30099 | -2/Protoforge | Found Faulty Cep. Cloak Mesh 30159 | -2/Protoforge | Spotted V382-r 30164 | -2/Protoforge | Warped through subspace to slip node 30167 | -2/Protoforge | Found Cep. Plasma Driver 30168 | -2/Protoforge | Entered Access 30168 | -1/Access | Evolved 2 slots: Propulsion x1, Utility x1 30918 | -1/Access | First assault squad dispatched 30956 | -1/Access | Destroyed 9 combat bots 30967 | -1/Access | Spotted B-99 Colossus 30994 | -1/Access | Build established: Gunner 31040 | -1/Access | Spotted B-99 Colossus 31149 | -1/Access | Discovered new exit (range 6) 31153 | -1/Access | Identified exit to Command 34310 | -1/Access | Entered Command 34560 | -1/Command | First assault squad dispatched 34589 | -1/Command | Spotted Combat Programmer 34651 | -1/Command | Met MAIN.C 34662 | -1/Command | Destroyed MAIN.C Shell 34662 | -1/Command | 0b10 Conduit disabled 34663 | -1/Command | Surrendered to MAIN.C 34663 | -1/Command | Loaded intel: 54 machine locations 34663 | -1/Command | Loaded intel: 99 trap records 34663 | -1/Command | Identified exit to Surface 34663 | -1/Command | Discovered exit to Surface (range 85) 34663 | -1/Command | Discovered exit to Surface (range 47) 34676 | -1/Command | Found Prototype Reactor 34678 | -1/Command | Found Centrium Heavy Armor Plating 34991 | -1/Command | MAIN.C activated Command garrisons 35031 | -1/Command | Unknown forces attacked Command 35031 | -1/Command | Spotted EQ-006 35031 | -1/Command | Spotted EQ-002 35031 | -1/Command | Spotted EQ-003 35031 | -1/Command | Spotted EQ-004 35031 | -1/Command | Spotted EQ-001 35031 | -1/Command | Spotted EQ-005 35032 | -1/Command | Spotted EQ-000 35036 | -1/Command | Destroyed EQ-002 35052 | -1/Command | Destroyed EQ-000 35098 | -1/Command | Spotted EQ-007 35099 | -1/Command | Spotted EQ-017 35123 | -1/Command | Destroyed EQ-017 35124 | -1/Command | Spotted EQ-022 35124 | -1/Command | Spotted EQ-019 35124 | -1/Command | Spotted EQ-020 35125 | -1/Command | Spotted EQ-018 35128 | -1/Command | Spotted EQ-021 35130 | -1/Command | Spotted EQ-037 35132 | -1/Command | Destroyed EQ-007 35137 | -1/Command | Destroyed EQ-021 35144 | -1/Command | Destroyed EQ-022 35154 | -1/Command | Destroyed EQ-018 35160 | -1/Command | Spotted EQ-015 35161 | -1/Command | Destroyed EQ-015 35163 | -1/Command | Spotted EQ-025 35163 | -1/Command | Spotted EQ-028 35167 | -1/Command | Destroyed EQ-028 35183 | -1/Command | Spotted EQ-027 35188 | -1/Command | Destroyed 7 combat bots 35190 | -1/Command | Lost 4 allies 35231 | -1/Command | Spotted EQ-040 35231 | -1/Command | Spotted EQ-039 35231 | -1/Command | Spotted EQ-038 35243 | -1/Command | Spotted EQ-058 35244 | -1/Command | Spotted EQ-036 35246 | -1/Command | Spotted EQ-053 35253 | -1/Command | Destroyed EQ-036 35283 | -1/Command | Lost 6 allies 35296 | -1/Command | Spotted EQ-057 35303 | -1/Command | Destroyed EQ-057 35351 | -1/Command | Spotted EQ-069 35351 | -1/Command | Spotted EQ-060 35351 | -1/Command | Spotted EQ-070 35351 | -1/Command | Destroyed Executioner 35364 | -1/Command | Found Prototype Processor 35364 | -1/Command | Identified Exp. Core Analyzer 35394 | -1/Command | Spotted EQ-063 35399 | -1/Command | Destroyed EQ-063 35409 | -1/Command | Spotted EQ-072 35412 | -1/Command | Lost 3 allies 35419 | -1/Command | Destroyed EQ-065 35459 | -1/Command | Spotted EQ-085 35459 | -1/Command | Spotted EQ-087 35459 | -1/Command | Spotted EQ-084 35459 | -1/Command | Spotted EQ-086 35460 | -1/Command | Destroyed EQ-087 35463 | -1/Command | Destroyed EQ-086 35464 | -1/Command | Attackers retreated from Command 35464 | *** | Fortifying 0b10! Last Messages --------------- 35463_ Executioner system terminally corrupted. 35463_ Plasma Slug penetrates EQ-086. 35463_ EQ-086 suffers critical hit (Meltdown). 35463_ Exp. Core Shielding melted. 35463_ Prototype Leg melted. 35463_ Exp. Targeting Computer melted. 35463_ Exp. Core Analyzer melted. 35463_ Slug penetrates EQ-084. 35463_ Slug penetrates Reinforced Barrier. 35464_ ALERT: Enemy forces retreating. MAIN.C: I admit your assistance was pivotal here. It looks like I was right to trust you. This attack appears to have been designed to merely test our defenses, although it was nearly effective enough to force me to take the conflict to the next level. Investigating the origins of these bots should be one of our highest priorities... [Achievement: Force of Scrap] [Achievement: Stronghold] [Achievement: Superachiever] Map ----- +----------------------------------------------------+ | ???????????????????????????????????????????????#?# | | ???????????????????????????????????????????????#?# | | ???????????????????????????????????????????????#?# | | ???????????????????????????????????????????????#?# | | ???????????????????????????????????????????????#?# | | ???????????????????????????????????????????????#?# | | ???????????????????????????????????????????????#?# | | ???????????????????????????????????????????????#?# | | ????????????????###########################????#?# | | ????????????????#?????????????????????????#????#?# | | ????????????????#?#######################?#????#?# | | ##########??????#?#" *########## | | + #??????#?#"" ]= !%#?#??????? | | ###### #??????#?#""" %%= ![########## | | #????# ##?????#?#"""" [ Y % | | !######+#"##???#?#" " %% % % % | | # #???#?# " "" [%% % * % | | # #???#?# %[ l ########## | | # """ #???#?# % %= #?#??????? | | # """" "???#?# [=!%%%=b ########## | | ### """" ##??#?# " % *%== M "#?#????" " | | ==# """" #??#?#" %=*h% "#?#?? "## | | %=# #####?# =[ [ "#?#????#?# | | /!! # #?#! =!]pg !%=% #?#????#?# | | !!""" [ ! #?#]! ==]s !! [= %= ! #?#????#?# | | " =!#######%* % @ [%! [ !%=#?#????#?# | | = # =|[=%!!!7 * ! ] #?#????#?# | | ###= ! !=!%[!!g! p !%#?#????#?# | | " !%! ]!!!!% %!h = % %*#?#????#?# | | ##!%[!=%=!*=%#### ! #?#????#?# | | ### [=% %!# ###?# !!* #?#????#?# | | ?# # # ##?# !%= #?#????#?# | | # # %# ## #?#######################?#????#?# | | # ! #### #?????????????????????????#????#?# | | ### % # #??? ###########################????#?# | | #### # ## ???##??????????????????????????????#?# | | # #??????????????????????????????????#?# | | ?##??????????????????????????????????#?# | | < ## #?????????????????????????????????????#?# | | ## #?????????????????????????????????????#?# | | #### ######????????????????????????????????#?# | | ???# | # #????????????????????????????????#?# | | ???# [ # #????????????????????????????????#?# | | ???#![ # #????????????????????????????????#?# | | ???#%! # #????????????????????????????????#?# | | ???#*! # #????????????????????????????????#?# | | ???# + #????????????????????????????????#?# | | ???# #### ! #????????????????????????????????#?# | | ???# #??# #????????????????????????????????#?# | | #### #??# #????????????????????????????????#?# | +----------------------------------------------------+ Best States ------------- Heat Dissipation 142 Coolant Potential 100 Energy Generation 83 Energy Capacity 1760 Matter Stores 300 Matter Capacity 300 Sight Range 16 Robot Scan Range 18 Terrain Scan Range 18 Terrain Scan Density 210 Jamming Range 16 Cloak Strength 9 Base Temperature (-) 200 Armor Coverage 825 Resistance: TH 15 Projectile Deflection 15 Weapon Cycling 25 Evasion (%) 63 Core Analysis 11 Recoil Reduction 5 Energy Filtering 30 Kinecelleration 66 Offensive Hacking 42 Authchip Count 3 Item Schematics ----------------- Assault Drone Bay | -4/Zhirov | Free Exp. Heat Sink | -4/Zhirov | Free Exp. Optical Array | -4/Zhirov | Free Imp. Arc Thrower | -4/Zhirov | Free Flak Cannon | -3/Armory | Hacked Hvy. Wave Gun | -2/Protoforge | Archive Robot Schematics ------------------ None Fabricated ------------ Flak Cannon | x2 | -3/Armory | Authchip Flak Cannon | x2 | -3/Armory | Authchip Flak Cannon | x2 | -3/Armory Flak Cannon | x2 | -2/Research Repaired ---------- Drone Bay | 35% | -8/Storage Adv. Cooling System | 99% | -3/Research | Broken Adv. Cooling System | 11% | -3/Research Studied --------- Hyp. Gauss Cannon | -4/Factory | Hacked Lgt. Particle Reactor | -3/Research | Hacked Alien Tech Used ----------------- Integrated Reactor Transdimensional Reconstructor Integrated Mediator Core Expander Dimensional Node Initializer Core Cannon Achievements -------------- Bigger Is Better Force of Scrap Prodigal Son Shocking Conclusion Stronghold Superachiever Challenges ------------ None Game ------ Seed TerrabombAuthchipSword Manual? 0 Play Time 05:27:02 Cumulative 437.0 hours Start 2026.04.24 @ 12:43:50 End 2026.04.25 @ 09:24:11 Sessions 7 Manual Loads 0 Difficulty Rogue Special Mode None Game No. 160 Rogue 159 Adventurer 1 Explorer 0 Win Type 8 Total 19 Types 6/2/2/1/1/0/4/1/1/1 Lore% 64 Gallery% 82 Achievement% 75 Wizard Run 0 Options --------- Layout 0 ASCII 0 Keyboard 0 Movement Arrows Keybinds 0 Fullscreen 2 Font 24/Smallcaps Map View 76x50 Zoom Use 0% Tactical HUD 1 Map Filters NONE Filters NONE Steam 1 RUN: 9ee45882-40e3-4986-83d8-1079672c3957